Workbook

Sheet паспорт
A1: ПАТ "УКРТРАНСГАЗ" | G1: ПАСПОРТ ФІЗИКО-ХІМІЧНИХ ПОКАЗНИКІВ ПРИРОДНОГО ГАЗУ № 612
A2: Філія "УМГ "ХАРКІВТРАНСГАЗ" | G2: переданого Запорізьким ЛВУМГ та прийнятого ПАТ "Запоріжгаз", ПАТ "Мелітопольгаз",
A3: Запорізький п/м Запорізького ЛВУМГ | G3: ТОВ ВТФ "АЛЕКС i К ", ПАТ "ДТЕК ДНІПРОЕНЕРГО"
A4: Вимірювальна хіміко-аналітична лабораторія | M4: Маршрут № 612
A5: Свідоцтво № АВ-14-15 чинне до 10.09.2020 р. | K5: по газопроводу ШДКРІ - Запорізька ГРЕС - Мелітополь | V5: за період з 01.03.2017р. по 31.03.2017р.
A7: Число місяця | B7: Компонентний склад, мол. % | N7: Фізико-хімічні показники газу обчислені на основі компонентного складу, 101,325 кПа | X7: Температура точки роси за вологою (Р = 3.92 МПа), °С | Y7: Температура точки роси за вуглеводнями, °С | Z7: Вміст сірководню, г/м3 | AA7: Вміст меркаптанової сірки, г/м3 | AB7: Вміст механічних домішок, г/м3
N8: Густина абсолютна, кг/м3,при 20 °С, | O8: Температура вимірювання/згоряння при 20/25°С
B9: метан, С1 | C9: етан, С2 | D9: пропан, С3 | E9: ізо-бутан, і-С4 | F9: н-бутан, н-С4 | G9: нео-пентан, нео-С5 | H9: ізо-пентан, і-С5 | I9: н-пентан, н-С5 | J9: гексани та вищі, С6+ | K9: кисень, О2 | L9: азот, N2 | M9: діоксид вуглецю, CО2 | O9: Теплота згоряння нижча | R9: Теплота згоряння вища | U9: Число Воббе вище
O10: ккал/м³ | P10: МДж/м³ | Q10: кВт⋅год/м³ | R10: ккал/м³ | S10: МДж/м³ | T10: кВт⋅год/м³ | U10: ккал/м³ | V10: МДж/м³ | W10: кВт⋅год/м³
A11: 1 | B11: 95.6015 | C11: 2.3119 | D11: 0.7331 | E11: 0.1057 | F11: 0.1234 | G11: 0.002 | H11: 0.0267 | I11: 0.0198 | J11: 0.0227 | K11: 0.0077 | L11: 0.8612 | M11: 0.1842 | N11: 0.7027 | O11: =P11*238.8459 -> 8197.597326 | P11: 34.3217 | Q11: =P11/3.6 -> 9.533805556 | R11: =S11*238.8459 -> 9089.280725 | S11: 38.055 | T11: =S11/3.6 -> 10.57083333 | U11: =V11*238.8459 -> 11899.8282 | V11: 49.8222 | W11: =V11/3.6 -> 13.8395 | X11: -21.9 | Y11: -16.2 | AC11: =SUM(B11:M11)+$K$42+$N$42 -> 99.9999
A12: 2 | B12: 94.8186 | C12: 2.6802 | D12: 0.9892 | E12: 0.1397 | F12: 0.1995 | G12: 0.0022 | H12: 0.0459 | I12: 0.0377 | J12: 0.0357 | K12: 0.0039 | L12: 0.814 | M12: 0.2334 | N12: 0.7114 | O12: =P12*238.8459 -> 8286.23304 | P12: 34.6928 | Q12: =P12/3.6 -> 9.636888889 | R12: =S12*238.8459 -> 9184.269739 | S12: 38.4527 | T12: =S12/3.6 -> 10.68130556 | U12: =V12*238.8459 -> 11950.60684 | V12: 50.0348 | W12: =V12/3.6 -> 13.89855556 | X12: -18.7 | Y12: -13.6 | AC12: 100
A13: 3 | B13: 95.7433 | C13: 2.228 | D13: 0.6933 | E13: 0.1018 | F13: 0.1131 | G13: 0.0018 | H13: 0.0249 | I13: 0.019 | J13: 0.0275 | K13: 0.0074 | L13: 0.858 | M13: 0.1819 | N13: 0.7015 | O13: 8186.0133 | P13: 34.2732 | Q13: 9.520333333 | R13: =S13*238.8459 -> 9076.884622 | S13: 38.0031 | T13: 10.55641667 | U13: 11893.61821 | V13: 49.7962 | W13: 13.83227778 | X13: -18.7 | Y13: -13.7 | AC13: 100 | AD13: =IF(AC13=100,"ОК"," ") -> ОК
A14: 4 | O14: 8186.0133 | P14: 34.2732 | Q14: 9.520333333 | R14: 9076.884622 | S14: 38.0031 | T14: 10.55641667 | U14: 11893.61821 | V14: 49.7962 | W14: 13.83227778 | AC14: 0 | AD14: =IF(AC14=100,"ОК"," ") -> 
A15: 5 | O15: 8186.0133 | P15: 34.2732 | Q15: 9.520333333 | R15: 9076.884622 | S15: 38.0031 | T15: 10.55641667 | U15: 11893.61821 | V15: 49.7962 | W15: 13.83227778 | AC15: 0
A16: 6 | B16: 95.9559 | C16: 2.1747 | D16: 0.6561 | E16: 0.0977 | F16: 0.1028 | G16: 0.002 | H16: 0.0209 | I16: 0.0152 | J16: 0.0177 | K16: 0.0076 | L16: 0.7794 | M16: 0.1701 | N16: 0.6995 | O16: 8177.677578 | P16: 34.2383 | Q16: 9.510638889 | R16: 9068.238401 | S16: 37.9669 | T16: 10.54636111 | U16: 11899.25497 | V16: 49.8198 | W16: 13.83883333 | X16: -21.3 | Y16: -16.1 | AC16: 100.0001
A17: 7 | B17: 95.9022 | C17: 2.2088 | D17: 0.6664 | E17: 0.0995 | F17: 0.1056 | G17: 0.0019 | H17: 0.0219 | I17: 0.016 | J17: 0.0203 | K17: 0.0065 | L17: 0.7825 | M17: 0.1682 | N17: 0.7 | O17: 8183.194918 | P17: 34.2614 | Q17: 9.517055556 | R17: 9074.161779 | S17: 37.9917 | T17: 10.55325 | U17: 11902.67047 | V17: 49.8341 | W17: 13.84280556 | X17: -21 | Y17: -16 | AB17: відсутні | AC17: 99.9998
A18: 8 | O18: 8183.194918 | P18: 34.2614 | Q18: 9.517055556 | R18: 9074.161779 | S18: 37.9917 | T18: 10.55325 | U18: 11902.67047 | V18: 49.8341 | W18: 13.84280556 | AC18: 0
A19: 9 | B19: 95.1883 | C19: 2.5492 | D19: 0.7809 | E19: 0.1126 | F19: 0.134 | G19: 0.0026 | H19: 0.0318 | I19: 0.0248 | J19: 0.0368 | K19: 0.0059 | L19: 0.9283 | M19: 0.2047 | N19: 0.7062 | O19: 8221.768531 | P19: 34.4229 | Q19: 9.561916667 | R19: 9114.90889 | S19: 38.1623 | T19: 10.60063889 | U19: 11903.88858 | V19: 49.8392 | W19: 13.84422222 | X19: -18.1 | Y19: -12 | AC19: 99.9999
A20: 10 | B20: 95.1812 | C20: 2.5696 | D20: 0.7807 | E20: 0.1133 | F20: 0.1313 | G20: 0.0026 | H20: 0.0302 | I20: 0.0229 | J20: 0.0362 | K20: 0.0064 | L20: 0.9185 | M20: 0.2072 | N20: 0.7061 | O20: 8222.102915 | P20: 34.4243 | Q20: 9.562305556 | R20: 9115.291043 | S20: 38.1639 | T20: 10.60108333 | U20: 11904.70066 | V20: 49.8426 | W20: 13.84516667 | X20: -18 | Y20: -11.9 | Z20: < 0,0001 | AA20: 0.002 | AC20: 100.0001
A21: 11 | O21: 8222.102915 | P21: 34.4243 | Q21: 9.562305556 | R21: 9115.291043 | S21: 38.1639 | T21: 10.60108333 | U21: 11904.70066 | V21: 49.8426 | W21: 13.84516667 | AC21: 0
A22: 12 | O22: 8222.102915 | P22: 34.4243 | Q22: 9.562305556 | R22: 9115.291043 | S22: 38.1639 | T22: 10.60108333 | U22: 11904.70066 | V22: 49.8426 | W22: 13.84516667 | AC22: 0
A23: 13 | B23: 95.631 | C23: 2.3521 | D23: 0.7085 | E23: 0.1065 | F23: 0.1162 | G23: 0.0023 | H23: 0.0254 | I23: 0.0188 | J23: 0.0252 | K23: 0.0101 | L23: 0.8215 | M23: 0.1823 | N23: 0.7023 | O23: 8199.269247 | P23: 34.3287 | Q23: 9.53575 | R23: 9091.215376 | S23: 38.0631 | T23: 10.57308333 | U23: 11905.27389 | V23: 49.845 | W23: 13.84583333 | X23: -20.4 | Y23: -15.3 | AC23: 99.9999
A24: 14 | B24: 95.5912 | C24: 2.3792 | D24: 0.7205 | E24: 0.1086 | F24: 0.1181 | G24: 0.0022 | H24: 0.0256 | I24: 0.0187 | J24: 0.0236 | K24: 0.0105 | L24: 0.8164 | M24: 0.1854 | N24: 0.7027 | O24: 8202.828051 | P24: 34.3436 | Q24: 9.539888889 | R24: 9095.013026 | S24: 38.079 | T24: 10.5775 | U24: 11907.4235 | V24: 49.854 | W24: 13.84833333 | X24: -22 | Y24: -16.3 | AC24: 100 | AD24: ОК
A25: 15 | B25: 95.2233 | C25: 2.5544 | D25: 0.7793 | E25: 0.1144 | F25: 0.1306 | G25: 0.0024 | H25: 0.0293 | I25: 0.0219 | J25: 0.0341 | K25: 0.0051 | L25: 0.8968 | M25: 0.2084 | N25: 0.7058 | O25: 8221.649108 | P25: 34.4224 | Q25: 9.561777778 | R25: 9114.885005 | S25: 38.1622 | T25: 10.60061111 | U25: 11906.75473 | V25: 49.8512 | W25: 13.84755556 | X25: -21.8 | Y25: -16 | AC25: 100 | AD25: ОК
A26: 16 | B26: 95.1283 | C26: 2.6034 | D26: 0.8094 | E26: 0.1203 | F26: 0.1377 | G26: 0.0025 | H26: 0.0323 | I26: 0.0251 | J26: 0.0383 | K26: 0.0075 | L26: 0.8844 | M26: 0.2109 | N26: 0.707 | O26: 8234.284056 | P26: 34.4753 | Q26: 9.576472222 | R26: 9128.451452 | S26: 38.219 | T26: 10.61638889 | U26: 11914.99491 | V26: 49.8857 | W26: 13.85713889 | X26: -19.9 | Y26: -14.7 | AC26: 100.0001
A27: 17 | B27: 94.9803 | C27: 2.6955 | D27: 0.8345 | E27: 0.1229 | F27: 0.1409 | G27: 0.0027 | H27: 0.0316 | I27: 0.0241 | J27: 0.0376 | K27: 0.008 | L27: 0.9029 | M27: 0.2193 | N27: 0.708 | O27: 8241.449433 | P27: 34.5053 | Q27: 9.584805556 | R27: 9136.022867 | S27: 38.2507 | T27: 10.62519444 | U27: 11915.85476 | V27: 49.8893 | W27: 13.85813889 | X27: -20.8 | Y27: -14.6 | AC27: 100.0003
A28: 18 | O28: 8241.449433 | P28: 34.5053 | Q28: 9.584805556 | R28: 9136.022867 | S28: 38.2507 | T28: 10.62519444 | U28: 11915.85476 | V28: 49.8893 | W28: 13.85813889 | AC28: 0
A29: 19 | O29: 8241.449433 | P29: 34.5053 | Q29: 9.584805556 | R29: 9136.022867 | S29: 38.2507 | T29: 10.62519444 | U29: 11915.85476 | V29: 49.8893 | W29: 13.85813889 | AC29: 0
A30: 20 | B30: 94.9766 | C30: 2.7184 | D30: 0.8352 | E30: 0.1223 | F30: 0.1378 | G30: 0.0026 | H30: 0.0306 | I30: 0.023 | J30: 0.0336 | K30: 0.0043 | L30: 0.8906 | M30: 0.2249 | N30: 0.7079 | O30: 8241.401664 | P30: 34.5051 | Q30: 9.58475 | R30: 9135.998983 | S30: 38.2506 | T30: 10.62516667 | U30: 11916.7146 | V30: 49.8929 | W30: 13.85913889 | X30: -20.7 | Y30: -15.5 | AC30: 99.9999 | AD30: =IF(AC30=100,"ОК"," ") -> 
A31: 21 | B31: 95.0381 | C31: 2.6841 | D31: 0.8291 | E31: 0.1222 | F31: 0.1388 | G31: 0.0024 | H31: 0.0308 | I31: 0.0231 | J31: 0.0325 | K31: 0.007 | L31: 0.878 | M31: 0.214 | N31: 0.7075 | O31: 8239.968589 | P31: 34.4991 | Q31: 9.583083333 | R31: 9134.542023 | S31: 38.2445 | T31: 10.62347222 | U31: 11918.72091 | V31: 49.9013 | W31: 13.86147222 | X31: -19.6 | Y31: -14.6 | AC31: 100.0001
A32: 22 | B32: 94.9934 | C32: 2.7049 | D32: 0.8416 | E32: 0.1247 | F32: 0.1416 | G32: 0.0025 | H32: 0.0315 | I32: 0.0237 | J32: 0.0357 | K32: 0.007 | L32: 0.8778 | M32: 0.2154 | N32: 0.708 | O32: 8245.079891 | P32: 34.5205 | Q32: 9.589027778 | R32: 9140.011594 | S32: 38.2674 | T32: 10.62983333 | U32: 11921.56318 | V32: 49.9132 | W32: 13.86477778 | X32: -18.6 | Y32: -13 | AC32: 99.9998
A33: 23 | B33: 95.1558 | C33: 2.657 | D33: 0.8171 | E33: 0.1223 | F33: 0.1355 | G33: 0.0025 | H33: 0.029 | I33: 0.0217 | J33: 0.0304 | K33: 0.0074 | L33: 0.8169 | M33: 0.2044 | N33: 0.7066 | O33: 8240.422396 | P33: 34.501 | Q33: 9.583611111 | R33: 9135.25856 | S33: 38.2475 | T33: 10.62430556 | U33: 11927.24771 | V33: 49.937 | W33: 13.87138889 | X33: -20.4 | Y33: -14.1 | AB33: відсутні | AC33: 100 | AD33: =IF(AC33=100,"ОК"," ") -> ОК
A34: 24 | B34: 95.3461 | C34: 2.5363 | D34: 0.7875 | E34: 0.119 | F34: 0.1297 | G34: 0.0024 | H34: 0.0278 | I34: 0.0206 | J34: 0.0275 | K34: 0.0074 | L34: 0.8028 | M34: 0.193 | N34: 0.705 | O34: 8228.026294 | P34: 34.4491 | Q34: 9.569194444 | R34: 9122.050382 | S34: 38.1922 | T34: 10.60894444 | U34: 11923.21121 | V34: 49.9201 | W34: 13.86669444 | X34: -21.7 | Y34: -15.2 | Z34: < 0,0001 | AA34: 0.0028 | AC34: 100.0001
A35: 25 | O35: 8228.026294 | P35: 34.4491 | Q35: 9.569194444 | R35: 9122.050382 | S35: 38.1922 | T35: 10.60894444 | U35: 11923.21121 | V35: 49.9201 | W35: 13.86669444 | AC35: 0
A36: 26 | O36: 8228.026294 | P36: 34.4491 | Q36: 9.569194444 | R36: 9122.050382 | S36: 38.1922 | T36: 10.60894444 | U36: 11923.21121 | V36: 49.9201 | W36: 13.86669444 | AC36: 0
A37: 27 | B37: 95.0779 | C37: 2.7179 | D37: 0.8385 | E37: 0.1264 | F37: 0.1381 | G37: 0.0025 | H37: 0.0293 | I37: 0.0217 | J37: 0.0291 | K37: 0.0073 | L37: 0.7968 | M37: 0.2146 | N37: 0.7073 | O37: 8248.590926 | P37: 34.5352 | Q37: 9.593111111 | R37: 9144.024205 | S37: 38.2842 | T37: 10.6345 | U37: 11932.66951 | V37: 49.9597 | W37: 13.87769444 | X37: -21.2 | Y37: -14.6 | AC37: 100.0001
A38: 28 | B38: 95.2868 | C38: 2.6469 | D38: 0.817 | E38: 0.1258 | F38: 0.1328 | G38: 0.0025 | H38: 0.0274 | I38: 0.0201 | J38: 0.0263 | K38: 0.0027 | L38: 0.7094 | M38: 0.2023 | N38: 0.7057 | O38: 8247.038427 | P38: 34.5287 | Q38: 9.591305556 | R38: 9142.686668 | S38: 38.2786 | T38: 10.63294444 | U38: 11943.96692 | V38: 50.007 | W38: 13.89083333 | X38: -20.7 | Y38: -14 | AC38: 100 | AD38: ОК
A39: 29 | B39: 95.2512 | C39: 2.6558 | D39: 0.8182 | E39: 0.1261 | F39: 0.1326 | G39: 0.0023 | H39: 0.0272 | I39: 0.0199 | J39: 0.0255 | K39: 0.0077 | L39: 0.7286 | M39: 0.2048 | N39: 0.7059 | O39: 8245.223198 | P39: 34.5211 | Q39: 9.589194444 | R39: 9140.656478 | S39: 38.2701 | T39: 10.63058333 | U39: 11939.73935 | V39: 49.9893 | W39: 13.88591667 | X39: -23 | Y39: -16.9 | AC39: 99.9999
A40: 30 | B40: 94.7305 | C40: 2.8553 | D40: 0.8933 | E40: 0.1306 | F40: 0.1533 | G40: 0.0027 | H40: 0.0347 | I40: 0.0267 | J40: 0.0418 | K40: 0.0022 | L40: 0.8953 | M40: 0.2336 | N40: 0.7104 | O40: 8265.142947 | P40: 34.6045 | Q40: 9.612361111 | R40: 9161.388302 | S40: 38.3569 | T40: 10.65469444 | U40: 11929.30178 | V40: 49.9456 | W40: 13.87377778 | X40: -18.1 | Y40: -11.2 | AC40: 100
A41: 31 | B41: 94.9512 | C41: 2.74 | D41: 0.8566 | E41: 0.1297 | F41: 0.1464 | G41: 0.0027 | H41: 0.0334 | I41: 0.0254 | J41: 0.0734 | K41: 0.0069 | L41: 0.8071 | M41: 0.2272 | N41: 0.7095 | O41: =P41*238.8459 -> 8268.247943 | P41: 34.6175 | Q41: 9.615972222 | R41: =S41*238.8459 -> 9165.018759 | S41: 38.3721 | T41: 10.65891667 | U41: =V41*238.8459 -> 11941.24408 | V41: 49.9956 | W41: =V41/3.6 -> 13.88766667 | X41: -19.9 | Y41: -13.1 | AC41: 100 | AD41: ОК
A42: Рівень одоризації відповідає чинним нормативним документам | O42: 8224 | P42: 34.43 | Q42: 9.56 | R42: 9117 | S42: 38.17 | T42: 10.6
H43: Середньозважене значення теплоти згоряння:
B46: Начальник управління Запорізького ЛВУМГ Дереновський О.Б.
C47: Підрозділу підприємства, якому підпорядкована лабораторія | O47: прізвище | T47: підпис | Y47: дата
B48: Завідувач лабораторії Огородник Ю.В.
C49: Лабораторія, де здійснювалось вимірювання газу | O49: прізвище | T49: підпис | Y49: дата
B50: Начальник служби ГВ та М Учуєв Г.М.
C51: Підрозділу, відповідального за облік газу за маршрутом | O51: прізвище | T51: підпис | Y51: дата

Sheet додаток
A2: Додаток до Паспорту фізико-хімічних показників природного газу № 612
A5: Область | B5: ГРС, прямий споживач | C5: Cередньозважене значення вищої теплоти згоряння
C6: МДж/м³ | D6: ккал/м³ | E6: кВт*год./м³
A7: Запорізька область | B7: ГРС 3 м.Запоріжжя | C7: 38.17 | D7: 9117 | E7: 10.6
B8: ГРС смт.Н.Миколаївка (райцентр) | C8: 38.17 | D8: 9118 | E8: 10.6
B9: ГРС м.Вільнянськ | C9: 38.17 | D9: 9118 | E9: 10.6
B10: ГРС с.Лежене | C10: 38.17 | D10: 9118 | E10: 10.6
B11: ГРС с.Калініне (п/г Восход) | C11: 38.17 | D11: 9117 | E11: 10.6
B12: ГРС с.Димитрово | C12: 38.17 | D12: 9118 | E12: 10.6
B13: ГРС м.Оріхів | C13: 38.17 | D13: 9118 | E13: 10.6
B14: ГРС м.Гуляйполе | C14: 38.18 | D14: 9118 | E14: 10.6
B15: ГРС м.Пологи | C15: 38.18 | D15: 9119 | E15: 10.61
B16: ГРС с.Мирне | C16: 38.17 | D16: 9118 | E16: 10.6
B17: ГРС с.Високе | C17: 38.17 | D17: 9117 | E17: 10.6
B18: ГРС с.Пришиб | C18: 38.17 | D18: 9117 | E18: 10.6
B19: ГРС м.Михайлівка | C19: 38.17 | D19: 9118 | E19: 10.6
B20: ГРС м.Токмак | C20: 38.17 | D20: 9118 | E20: 10.6
B21: ГРС м.Мелітополь (с.Семенівка) | C21: 38.17 | D21: 9118 | E21: 10.6
B22: ГРС с.Новомиколаївка (Меліт. р-н) | C22: 38.17 | D22: 9118 | E22: 10.6
B23: ГРС с.Якимівка | C23: 38.17 | D23: 9118 | E23: 10.6
B24: ГРС м.Василівка | C24: 38.17 | D24: 9118 | E24: 10.6
B25: ГРС с.Дніпрорудне | C25: 38.17 | D25: 9117 | E25: 10.6
B26: ГРС м.Енергодар | C26: 38.17 | D26: 9118 | E26: 10.6
B27: ГРС м.Кам'янка-Дніпровська | C27: 38.17 | D27: 9117 | E27: 10.6
B28: ТОВ ВТФ "АЛЕКС i К " АГНКС | C28: 38.18 | D28: 9119 | E28: 10.61
B29: ПАТ "ДТЕК ДНІПРОЕНЕРГО" ЗаТЕС | C29: 38.17 | D29: 9117 | E29: 10.6
A30: Середньозважене значення вищої теплоти згоряння по маршруту № 612 | C30: 38.17 | D30: 9117 | E30: 10.6
A35: Начальник управління Запорізького ЛВУМГ Дереновський О.Б.
A36: Підрозділу підприємства, якому підпорядкована лабораторія | D36: прізвище | E36: підпис | F36: дата
A38: Завідувач лабораторії Огородник Ю.В.
A39: Лабораторія, де здійснювалось вимірювання газу | D39: прізвище | E39: підпис | F39: дата
A41: Начальник служби ГВ та М Учуєв Г.М.
A42: Підрозділу, відповідального за облік газу за маршрутом | D42: прізвище | E42: підпис | F42: дата

Sheet Лист1
A1: ГРС-3 | G1: Вольнянск | M1: Гуляйполе | S1: Пологи | Y1: Акимовка | AE1: Лежено | AK1: Каменка | AQ1: Михайловка | AW1: Высокое | BC1: Димитрово | BI1: Орехов | BO1: Токмак | BU1: Восход | CA1: Днепрорудный | CG1: Новоник(М) | CM1: Пришиб | CS1: Мирный | CY1: Семеновка
A2: Данные по объекту Быт (осн.) за 3/17. | G2: Данные по объекту Быт (осн.) за 3/17. | M2: Данные по объекту Flowsic600 (осн.) за 3/17. | S2: Данные по объекту Пологи (осн.) за 3/17. | Y2: Данные по объекту Акимовка (осн.) за 3/17. | AE2: Данные по объекту Лежино (осн.) за 3/17. | AK2: Данные по объекту Каменка (осн.) за 3/17. | AQ2: Данные по объекту Михайловка (осн.) за 3/17. | AW2: Данные по объекту Высокое (осн.) за 3/17. | BC2: Данные по объекту Димитрово (осн.) за 3/17. | BI2: Данные по объекту Орехов (осн.) за 3/17. | BO2: Данные по объекту Токмак (осн.) за 3/17. | BU2: Данные по объекту Восход (осн.) за 3/17. | CA2: Данные по объекту Днепрорудный (осн.) за 3/17. | CG2: Данные по объекту Н-николаевка_м (осн.) за 3/17. | CM2: Данные по объекту Пришиб (осн.) за 3/17. | CS2: Данные по объекту Мирный (осн.) за 3/17. | CY2: Данные по объекту Быт (осн.) за 3/17.
A3: День | B3: V, м3 | C3: dP, кгс/м2 | D3: Pабс, кгс/см2 | E3: T, °C | F3: ABC | G3: День | H3: V, м3 | I3: dP, кгс/м2 | J3: Pабс, кгс/см2 | K3: T, °C | L3: ABC | M3: День | N3: V, м3 | O3: Vру, м3 | P3: Pабс, кгс/см2 | Q3: T, °C | R3: ABC | S3: День | T3: V, м3 | U3: dP, кгс/м2 | V3: Pабс, кгс/см2 | W3: T, °C | X3: ABC | Y3: День | Z3: V, м3 | AA3: dP, кгс/м2 | AB3: Pабс, кгс/см2 | AC3: T, °C | AD3: ABC | AE3: День | AF3: V, м3 | AG3: dP, кгс/м2 | AH3: Pабс, кгс/см2 | AI3: T, °C | AJ3: ABC | AK3: День | AL3: V, м3 | AM3: dP, кгс/м2 | AN3: Pабс, кгс/см2 | AO3: T, °C | AP3: ABC | AQ3: День | AR3: V, м3 | AS3: dP, кгс/м2 | AT3: Pабс, кгс/см2 | AU3: T, °C | AV3: ABC | AW3: День | AX3: V, м3 | AY3: dP, кгс/м2 | AZ3: Pабс, кгс/см2 | BA3: T, °C | BB3: ABC | BC3: День | BD3: V, м3 | BE3: dP, кгс/м2 | BF3: Pабс, кгс/см2 | BG3: T, °C | BH3: ABC | BI3: День | BJ3: V, м3 | BK3: dP, кгс/м2 | BL3: Pабс, кгс/см2 | BM3: T, °C | BN3: ABC | BO3: День | BP3: V, м3 | BQ3: dP, кгс/м2 | BR3: Pабс, кгс/см2 | BS3: T, °C | BT3: ABC | BU3: День | BV3: V, м3 | BW3: dP, кгс/м2 | BX3: Pабс, кгс/см2 | BY3: T, °C | BZ3: ABC | CA3: День | CB3: V, м3 | CC3: dP, кгс/м2 | CD3: Pабс, кгс/см2 | CE3: T, °C | CF3: ABC | CG3: День | CH3: V, м3 | CI3: dP, кгс/м2 | CJ3: Pабс, кгс/см2 | CK3: T, °C | CL3: ABC | CM3: День | CN3: V, м3 | CO3: dP, кгс/м2 | CP3: Pабс, кгс/см2 | CQ3: T, °C | CR3: ABC | CS3: День | CT3: V, м3 | CU3: dP, кгс/м2 | CV3: Pабс, кгс/см2 | CW3: T, °C | CX3: ABC | CY3: День | CZ3: V, м3 | DA3: dP, кгс/м2 | DB3: Pабс, кгс/см2 | DC3: T, °C | DD3: ABC
A4: 1 | B4: 508413.94 | C4: 199.817 | D4: 3.66 | E4: -15.25 | F4: B | G4: 1 | H4: 57931.2 | I4: 623.704 | J4: 44.22 | K4: 18.17 | L4: AB | M4: 1 | N4: 42213.71 | O4: 12580.6 | P4: 3.25 | Q4: 2.7 | R4: B | S4: 1 | T4: 51330.61 | U4: 404.539 | V4: 44.25 | W4: 15.92 | X4: B | Y4: 1 | Z4: 37406.31 | AA4: 221.237 | AB4: 44.66 | AC4: 6.99 | AD4: AB | AE4: 1 | AF4: 18259 | AG4: 810.336 | AH4: 3.06 | AI4: 0 | AJ4: B | AK4: 1 | AL4: 61221.11 | AM4: 599.773 | AN4: 44.57 | AO4: 21.55 | AP4: B | AQ4: 1 | AR4: 38112.95 | AS4: 422.389 | AT4: 44.49 | AU4: 16.84 | AV4: AB | AW4: 1 | AX4: 7910.62 | AY4: 250.946 | AZ4: 44.55 | BA4: 19.98 | BB4: B | BC4: 1 | BD4: 16973.03 | BE4: 638.047 | BF4: 44.66 | BG4: 20.86 | BH4: B | BI4: 1 | BJ4: 45914.57 | BK4: 344.244 | BL4: 44.62 | BM4: 18.6 | BN4: B | BO4: 1 | BP4: 100236.71 | BQ4: 109.653 | BR4: 44.59 | BS4: 20.89 | BT4: B | BU4: 1 | BV4: 205.01 | BW4: 6.119 | BX4: 2.7 | BY4: 10.66 | BZ4: AB | CA4: 1 | CB4: 76832.66 | CC4: 116.143 | CD4: 3.52 | CE4: 3.45 | CF4: B | CG4: 1 | CH4: 37675.21 | CI4: 226.073 | CJ4: 44.56 | CK4: 5.86 | CL4: B | CM4: 1 | CN4: 8504.01 | CO4: 174.277 | CP4: 3.01 | CQ4: 3.15 | CR4: B | CS4: 1 | CT4: 18957.54 | CU4: 582.949 | CV4: 44.54 | CW4: 21.43 | CX4: B | CY4: 1 | CZ4: 391505.81 | DA4: 249.025 | DB4: 5.16 | DC4: 2.09 | DD4: AB
A5: 2 | B5: 437662.25 | C5: 149.913 | D5: 3.63 | E5: -16.11 | F5: B | G5: 2 | H5: 52991.52 | I5: 506.497 | J5: 44.63 | K5: 17.85 | L5: B | M5: 2 | N5: 39310.32 | O5: 11588.1 | P5: 3.27 | Q5: 1.56 | R5: B | S5: 2 | T5: 51596.75 | U5: 404.327 | V5: 44.65 | W5: 16.37 | X5: B | Y5: 2 | Z5: 35553.2 | AA5: 196.801 | AB5: 45.08 | AC5: 6.26 | AD5: B | AE5: 2 | AF5: 16467.36 | AG5: 653.313 | AH5: 3.05 | AI5: -1.89 | AJ5: B | AK5: 2 | AL5: 59610.82 | AM5: 563.313 | AN5: 44.98 | AO5: 22.58 | AP5: B | AQ5: 2 | AR5: 34991.64 | AS5: 349.767 | AT5: 44.9 | AU5: 15.59 | AV5: AB | AW5: 2 | AX5: 7204.52 | AY5: 209.072 | AZ5: 44.95 | BA5: 23.16 | BB5: B | BC5: 2 | BD5: 15384.52 | BE5: 524.448 | BF5: 45.05 | BG5: 20.75 | BH5: B | BI5: 2 | BJ5: 41822.72 | BK5: 287.761 | BL5: 45.02 | BM5: 21.71 | BN5: B | BO5: 2 | BP5: 89641.42 | BQ5: 88.158 | BR5: 45.01 | BS5: 21.29 | BT5: B | BU5: 2 | BV5: 185.54 | BW5: 5.054 | BX5: 2.74 | BY5: 9.26 | BZ5: AB | CA5: 2 | CB5: 71649.02 | CC5: 101.215 | CD5: 3.49 | CE5: 0.96 | CF5: B | CG5: 2 | CH5: 34632.79 | CI5: 188.935 | CJ5: 44.98 | CK5: 5.52 | CL5: B | CM5: 2 | CN5: 7774.92 | CO5: 151.433 | CP5: 2.89 | CQ5: 1.69 | CR5: B | CS5: 2 | CT5: 17199.84 | CU5: 471.983 | CV5: 44.93 | CW5: 20.95 | CX5: B | CY5: 2 | CZ5: 370587.16 | DA5: 223.479 | DB5: 5.13 | DC5: 1.03 | DD5: B
A6: 3 | B6: 446363.78 | C6: 155.843 | D6: 3.66 | E6: -16.48 | F6: B | G6: 3 | H6: 50394.72 | I6: 466.129 | J6: 44.33 | K6: 17.84 | L6: B | M6: 3 | N6: 38129.76 | O6: 11230.6 | P6: 3.28 | Q6: 1.66 | R6: B | S6: 3 | T6: 52146.83 | U6: 418.719 | V6: 44.34 | W6: 17.83 | X6: B | Y6: 3 | Z6: 32868.84 | AA6: 170.811 | AB6: 44.78 | AC6: 6.61 | AD6: B | AE6: 3 | AF6: 15851.92 | AG6: 617.873 | AH6: 3 | AI6: -4.11 | AJ6: B | AK6: 3 | AL6: 60780.71 | AM6: 591.109 | AN6: 44.67 | AO6: 21.56 | AP6: B | AQ6: 3 | AR6: 34337.09 | AS6: 341.407 | AT6: 44.6 | AU6: 15.9 | AV6: B | AW6: 3 | AX6: 7310.21 | AY6: 214.108 | AZ6: 44.65 | BA6: 18.08 | BB6: B | BC6: 3 | BD6: 15195.44 | BE6: 515.199 | BF6: 44.74 | BG6: 20.42 | BH6: B | BI6: 3 | BJ6: 40217.34 | BK6: 268.807 | BL6: 44.72 | BM6: 20.43 | BN6: B | BO6: 3 | BP6: 91680.8 | BQ6: 91.974 | BR6: 44.71 | BS6: 18.64 | BT6: B | BU6: 3 | BV6: 186.39 | BW6: 5.435 | BX6: 2.62 | BY6: 8.28 | BZ6: AB | CA6: 3 | CB6: 71391.11 | CC6: 101.435 | CD6: 3.5 | CE6: 0.6 | CF6: B | CG6: 3 | CH6: 33494.64 | CI6: 179.829 | CJ6: 44.69 | CK6: 5.35 | CL6: B | CM6: 3 | CN6: 7518.1 | CO6: 144.221 | CP6: 2.86 | CQ6: 0.09 | CR6: B | CS6: 3 | CT6: 17742.79 | CU6: 507.167 | CV6: 44.63 | CW6: 20.32 | CX6: B | CY6: 3 | CZ6: 364380.72 | DA6: 215.638 | DB6: 5.14 | DC6: -0.66 | DD6: B
A7: 4 | B7: 452125.56 | C7: 160.017 | D7: 3.69 | E7: -16.31 | G7: 4 | H7: 48001.65 | I7: 426.197 | J7: 44.29 | K7: 18.65 | M7: 4 | N7: 36446.69 | O7: 10649.5 | P7: 3.28 | Q7: 0.09 | S7: 4 | T7: 48710.54 | U7: 368.526 | V7: 44.3 | W7: 18.02 | Y7: 4 | Z7: 31653.8 | AA7: 159.782 | AB7: 44.73 | AC7: 7.15 | AE7: 4 | AF7: 15607.82 | AG7: 601.676 | AH7: 3 | AI7: -5.81 | AK7: 4 | AL7: 57729.89 | AM7: 555.375 | AN7: 44.62 | AO7: 21.7 | AP7: A | AQ7: 4 | AR7: 32441.53 | AS7: 307.977 | AT7: 44.54 | AU7: 15.3 | AW7: 4 | AX7: 6942.7 | AY7: 195.371 | AZ7: 44.59 | BA7: 18.89 | BC7: 4 | BD7: 14870.15 | BE7: 499.362 | BF7: 44.68 | BG7: 20.84 | BI7: 4 | BJ7: 38803.02 | BK7: 247.324 | BL7: 44.66 | BM7: 15.74 | BO7: 4 | BP7: 85249.56 | BQ7: 80.521 | BR7: 44.66 | BS7: 16.58 | BT7: A | BU7: 4 | BV7: 179.12 | BW7: 4.734 | BX7: 2.73 | BY7: 7.96 | BZ7: A | CA7: 4 | CB7: 68107.2 | CC7: 91.69 | CD7: 3.53 | CE7: 0.28 | CG7: 4 | CH7: 31732.76 | CI7: 163.676 | CJ7: 44.63 | CK7: 5.34 | CL7: A | CM7: 4 | CN7: 7190.25 | CO7: 130.527 | CP7: 2.9 | CQ7: -0.49 | CS7: 4 | CT7: 17851.56 | CU7: 519.009 | CV7: 44.57 | CW7: 17.35 | CY7: 4 | CZ7: 345030.63 | DA7: 194.339 | DB7: 5.15 | DC7: -2.24
A8: 5 | B8: 494339.03 | C8: 199.526 | D8: 3.65 | E8: -15.37 | G8: 5 | H8: 53773.29 | I8: 542.364 | J8: 43.6 | K8: 17.18 | M8: 5 | N8: 39856.61 | O8: 11874.3 | P8: 3.24 | Q8: 1.84 | R8: A | S8: 5 | T8: 52937.21 | U8: 436.847 | V8: 43.62 | W8: 16.22 | Y8: 5 | Z8: 33342.73 | AA8: 181.051 | AB8: 44.06 | AC8: 7.44 | AE8: 5 | AF8: 17153.59 | AG8: 732.442 | AH8: 3.01 | AI8: -1.76 | AK8: 5 | AL8: 59347.49 | AM8: 595.185 | AN8: 43.95 | AO8: 22.55 | AQ8: 5 | AR8: 35435.74 | AS8: 372.826 | AT8: 43.88 | AU8: 15.15 | AW8: 5 | AX8: 7603.06 | AY8: 235.8 | AZ8: 43.94 | BA8: 17.74 | BC8: 5 | BD8: 15722.08 | BE8: 569.699 | BF8: 44.02 | BG8: 23.24 | BI8: 5 | BJ8: 42443.93 | BK8: 298.435 | BL8: 44 | BM8: 15.96 | BO8: 5 | BP8: 93694.02 | BQ8: 97.179 | BR8: 43.98 | BS8: 17.93 | BT8: A | BU8: 5 | BV8: 187.73 | BW8: 5.99 | BX8: 2.61 | BY8: 7.79 | BZ8: A | CA8: 5 | CB8: 73194.04 | CC8: 107.124 | CD8: 3.5 | CE8: 1.44 | CG8: 5 | CH8: 33838.65 | CI8: 187.682 | CJ8: 43.98 | CK8: 5.58 | CM8: 5 | CN8: 8102.77 | CO8: 167.04 | CP8: 2.88 | CQ8: 0.77 | CS8: 5 | CT8: 19862.72 | CU8: 652.339 | CV8: 43.91 | CW8: 20.88 | CY8: 5 | CZ8: 353182.16 | DA8: 205.443 | DB8: 5.12 | DC8: -3.14
A9: 6 | B9: 559117.06 | C9: 246.166 | D9: 3.66 | E9: -15.32 | F9: B | G9: 6 | H9: 55879.11 | I9: 582.358 | J9: 42.93 | K9: 16.08 | L9: B | M9: 6 | N9: 38288.16 | O9: 12590.4 | P9: 2.94 | Q9: 1 | R9: AB | S9: 6 | T9: 50429.76 | U9: 443.181 | V9: 42.95 | W9: 16 | X9: ABC | Y9: 6 | Z9: 33542.96 | AA9: 182.922 | AB9: 43.37 | AC9: 6.31 | AD9: B | AE9: 6 | AF9: 16810.76 | AG9: 769.325 | AH9: 2.79 | AI9: -0.5 | AJ9: AB | AK9: 6 | AL9: 61794.04 | AM9: 634.089 | AN9: 43.26 | AO9: 22.49 | AP9: B | AQ9: 6 | AR9: 37099.27 | AS9: 406.18 | AT9: 43.2 | AU9: 14.38 | AV9: B | AW9: 6 | AX9: 7878.58 | AY9: 260.998 | AZ9: 43.26 | BA9: 21.47 | BB9: AB | BC9: 6 | BD9: 15513.8 | BE9: 558.078 | BF9: 43.36 | BG9: 19.23 | BH9: AB | BI9: 6 | BJ9: 42809.04 | BK9: 309.366 | BL9: 43.32 | BM9: 16.16 | BN9: AB | BO9: 6 | BP9: 94348.41 | BQ9: 98.85 | BR9: 43.3 | BS9: 17.4 | BT9: B | BU9: 6 | BV9: 184.02 | BW9: 5.293 | BX9: 2.51 | BY9: 6.62 | BZ9: AB | CA9: 6 | CB9: 73898.32 | CC9: 108.184 | CD9: 3.5 | CE9: 2.01 | CF9: B | CG9: 6 | CH9: 34972.3 | CI9: 201.035 | CJ9: 43.28 | CK9: 5.06 | CL9: B | CM9: 6 | CN9: 8210.49 | CO9: 191.7 | CP9: 2.57 | CQ9: 0.52 | CR9: B | CS9: 6 | CT9: 20072.34 | CU9: 689.002 | CV9: 43.25 | CW9: 18.66 | CX9: AB | CY9: 6 | CZ9: 395889.5 | DA9: 251.808 | DB9: 5.11 | DC9: -0.15 | DD9: B
A10: 7 | B10: 401600.41 | C10: 129.777 | D10: 3.62 | E10: -14.78 | F10: B | G10: 7 | H10: 48381.21 | I10: 443.118 | J10: 43.05 | K10: 18.84 | L10: B | M10: 7 | N10: 37615.2 | O10: 12657.7 | P10: 2.86 | Q10: 0.78 | R10: AB | S10: 7 | T10: 47785.8 | U10: 360.608 | V10: 43.06 | W10: 16.49 | X10: B | Y10: 7 | Z10: 32739.15 | AA10: 174.81 | AB10: 43.47 | AC10: 6.76 | AD10: B | AE10: 7 | AF10: 15507.66 | AG10: 661.668 | AH10: 2.75 | AI10: -0.89 | AJ10: ABC | AK10: 7 | AL10: 53332.79 | AM10: 482.332 | AN10: 43.39 | AO10: 21.54 | AP10: B | AQ10: 7 | AR10: 33001.32 | AS10: 321.597 | AT10: 43.3 | AU10: 14.79 | AV10: ABC | AW10: 7 | AX10: 6866.13 | AY10: 194.941 | AZ10: 43.34 | BA10: 19.32 | BB10: B | BC10: 7 | BD10: 14452.69 | BE10: 479.166 | BF10: 43.44 | BG10: 20.27 | BH10: B | BI10: 7 | BJ10: 38785.74 | BK10: 251.105 | BL10: 43.42 | BM10: 15.7 | BN10: B | BO10: 7 | BP10: 85876.3 | BQ10: 82.735 | BR10: 43.41 | BS10: 15.8 | BT10: ABC | BU10: 7 | BV10: 177.16 | BW10: 5.111 | BX10: 2.52 | BY10: 8.94 | BZ10: AB | CA10: 7 | CB10: 67191.96 | CC10: 88.639 | CD10: 3.52 | CE10: 1.71 | CF10: B | CG10: 7 | CH10: 32889.89 | CI10: 178.938 | CJ10: 43.37 | CK10: 5.56 | CL10: B | CM10: 7 | CN10: 7493.92 | CO10: 165.986 | CP10: 2.46 | CQ10: 1.96 | CR10: B | CS10: 7 | CT10: 18038.57 | CU10: 542.509 | CV10: 43.33 | CW10: 20.25 | CX10: B | CY10: 7 | CZ10: 365095.31 | DA10: 216.118 | DB10: 5.13 | DC10: 0.92 | DD10: B
A11: 8 | B11: 516066.25 | C11: 208.938 | D11: 3.66 | E11: -15.97 | G11: 8 | H11: 57786.82 | I11: 613.992 | J11: 43.15 | K11: 15.93 | M11: 8 | N11: 44420.98 | O11: 15188.4 | P11: 2.81 | Q11: -0.19 | R11: A | S11: 8 | T11: 54978.05 | U11: 472.492 | V11: 43.17 | W11: 15.82 | Y11: 8 | Z11: 35607.72 | AA11: 202.934 | AB11: 43.59 | AC11: 5.76 | AE11: 8 | AF11: 18446.8 | AG11: 900.385 | AH11: 2.73 | AI11: -3.92 | AK11: 8 | AL11: 64620.32 | AM11: 683.255 | AN11: 43.47 | AO11: 22.21 | AQ11: 8 | AR11: 37789.7 | AS11: 413.686 | AT11: 43.42 | AU11: 14.2 | AW11: 8 | AX11: 7958.47 | AY11: 258.265 | AZ11: 43.48 | BA11: 19.34 | BC11: 8 | BD11: 17156.7 | BE11: 665.873 | BF11: 43.58 | BG11: 20.47 | BI11: 8 | BJ11: 46198.34 | BK11: 350.631 | BL11: 43.54 | BM11: 16.94 | BO11: 8 | BP11: 98104.96 | BQ11: 105.023 | BR11: 43.52 | BS11: 15.98 | BU11: 8 | BV11: 220.72 | BW11: 7.942 | BX11: 2.53 | BY11: 4.34 | BZ11: A | CA11: 8 | CB11: 71610.48 | CC11: 100.485 | CD11: 3.49 | CE11: 0.75 | CG11: 8 | CH11: 36361.12 | CI11: 212.057 | CJ11: 43.5 | CK11: 4.5 | CL11: A | CM11: 8 | CN11: 8484.57 | CO11: 210.884 | CP11: 2.45 | CQ11: -0.51 | CS11: 8 | CT11: 21217.12 | CU11: 739.302 | CV11: 43.46 | CW11: 21.88 | CY11: 8 | CZ11: 401833.91 | DA11: 256.643 | DB11: 5.1 | DC11: 1.44
A12: 9 | B12: 487203.03 | C12: 187.265 | D12: 3.65 | E12: -15.28 | F12: ABC | G12: 9 | H12: 51344.49 | I12: 490.779 | J12: 43.6 | K12: 17.86 | L12: B | M12: 9 | N12: 38950.94 | O12: 13118.8 | P12: 2.87 | Q12: 1.46 | R12: B | S12: 9 | T12: 52776.52 | U12: 432.22 | V12: 43.61 | W12: 16.6 | X12: B | Y12: 9 | Z12: 32926.59 | AA12: 174.505 | AB12: 44.03 | AC12: 7.45 | AD12: B | AE12: 9 | AF12: 16418.02 | AG12: 736.463 | AH12: 2.74 | AI12: -0.38 | AJ12: B | AK12: 9 | AL12: 56386.79 | AM12: 530.96 | AN12: 43.95 | AO12: 21.75 | AP12: B | AQ12: 9 | AR12: 34543.58 | AS12: 346.452 | AT12: 43.86 | AU12: 14.11 | AV12: B | AW12: 9 | AX12: 7335.77 | AY12: 218.91 | AZ12: 43.92 | BA12: 18.8 | BB12: B | BC12: 9 | BD12: 15111.19 | BE12: 517.729 | BF12: 44.01 | BG12: 20.99 | BH12: B | BI12: 9 | BJ12: 40374.34 | BK12: 268.505 | BL12: 43.99 | BM12: 15.77 | BN12: B | BO12: 9 | BP12: 88590.23 | BQ12: 85.546 | BR12: 43.97 | BS12: 17.22 | BT12: B | BU12: 9 | BV12: 178.62 | BW12: 4.954 | BX12: 2.59 | BY12: 9.44 | BZ12: AB | CA12: 9 | CB12: 65104.7 | CC12: 84.075 | CD12: 3.52 | CE12: 1.63 | CF12: B | CG12: 9 | CH12: 33147.16 | CI12: 179.419 | CJ12: 43.94 | CK12: 5.94 | CL12: B | CM12: 9 | CN12: 7695.41 | CO12: 172.026 | CP12: 2.5 | CQ12: 1.88 | CR12: B | CS12: 9 | CT12: 17959.84 | CU12: 532.087 | CV12: 43.9 | CW12: 20.9 | CX12: B | CY12: 9 | CZ12: 384727.53 | DA12: 234.808 | DB12: 5.13 | DC12: 2.44 | DD12: B
A13: 10 | B13: 396236.78 | C13: 131.292 | D13: 3.51 | E13: -13.57 | F13: B | G13: 10 | H13: 49024.04 | I13: 456.321 | J13: 43.63 | K13: 18.82 | L13: AB | M13: 10 | N13: 36603.08 | O13: 12392.6 | P13: 2.86 | Q13: 1.87 | R13: B | S13: 10 | T13: 49925.5 | U13: 393.475 | V13: 43.64 | W13: 16.81 | X13: B | Y13: 10 | Z13: 32401.73 | AA13: 170.812 | AB13: 44.06 | AC13: 7.93 | AD13: B | AE13: 10 | AF13: 15302.63 | AG13: 654.563 | AH13: 2.68 | AI13: -1.23 | AJ13: B | AK13: 10 | AL13: 53944.02 | AM13: 480.868 | AN13: 43.98 | AO13: 22.44 | AP13: B | AQ13: 10 | AR13: 32090.86 | AS13: 300.007 | AT13: 43.89 | AU13: 13.43 | AV13: B | AW13: 10 | AX13: 6811.07 | AY13: 192.29 | AZ13: 43.94 | BA13: 20.62 | BB13: B | BC13: 10 | BD13: 14503.6 | BE13: 482.22 | BF13: 44.03 | BG13: 22.19 | BH13: B | BI13: 10 | BJ13: 37492.33 | BK13: 238.533 | BL13: 44.01 | BM13: 20.84 | BN13: B | BO13: 10 | BP13: 81819.84 | BQ13: 75.989 | BR13: 44 | BS13: 17.42 | BT13: B | BU13: 10 | BV13: 167.94 | BW13: 4.392 | BX13: 2.58 | BY13: 10.67 | BZ13: AB | CA13: 10 | CB13: 63170.12 | CC13: 78.847 | CD13: 3.51 | CE13: 0.4 | CF13: B | CG13: 10 | CH13: 32629.93 | CI13: 175.096 | CJ13: 43.96 | CK13: 6.73 | CL13: B | CM13: 10 | CN13: 7274.26 | CO13: 1376.851 | CP13: 2.51 | CQ13: 2.93 | CR13: ABC | CS13: 10 | CT13: 15723.14 | CU13: 414.56 | CV13: 43.92 | CW13: 20.02 | CX13: ABC | CY13: 10 | CZ13: 376160.88 | DA13: 225.38 | DB13: 5.14 | DC13: 1.33 | DD13: B
A14: 11 | B14: 467755.41 | C14: 182.177 | D14: 3.42 | E14: -15.49 | G14: 11 | H14: 57700.69 | I14: 618.774 | J14: 43.11 | K14: 15.99 | M14: 11 | N14: 41746.09 | O14: 14350.1 | P14: 2.8 | Q14: 0.19 | S14: 11 | T14: 53488.73 | U14: 450.263 | V14: 43.13 | W14: 16.04 | Y14: 11 | Z14: 33686.64 | AA14: 185.401 | AB14: 43.57 | AC14: 7.32 | AE14: 11 | AF14: 17596.05 | AG14: 837.597 | AH14: 2.75 | AI14: -2.27 | AK14: 11 | AL14: 60262.25 | AM14: 586.284 | AN14: 43.46 | AO14: 19.24 | AQ14: 11 | AR14: 34482.24 | AS14: 348.206 | AT14: 43.39 | AU14: 13.46 | AW14: 11 | AX14: 7154.33 | AY14: 212.093 | AZ14: 43.45 | BA14: 19.79 | BC14: 11 | BD14: 16554.4 | BE14: 630.09 | BF14: 43.54 | BG14: 22.02 | BI14: 11 | BJ14: 42041.59 | BK14: 295.191 | BL14: 43.51 | BM14: 18.11 | BO14: 11 | BP14: 89982.8 | BQ14: 90.013 | BR14: 43.5 | BS14: 17.57 | BT14: A | BU14: 11 | BV14: 216.12 | BW14: 7.183 | BX14: 2.58 | BY14: 5.24 | BZ14: A | CA14: 11 | CB14: 67122.68 | CC14: 88.724 | CD14: 3.49 | CE14: -0.35 | CG14: 11 | CH14: 32976.32 | CI14: 179.396 | CJ14: 43.48 | CK14: 6.06 | CM14: 11 | CN14: 7674.41 | CO14: 2042.022 | CP14: 2.56 | CQ14: 0.34 | CS14: 11 | CT14: 17645.41 | CU14: 512.844 | CV14: 43.43 | CW14: 19.63 | CY14: 11 | CZ14: 375605.72 | DA14: 224.638 | DB14: 5.13 | DC14: 0.89
A15: 12 | B15: 574217.44 | C15: 271.306 | D15: 3.46 | E15: -15.78 | G15: 12 | H15: 62254.77 | I15: 725.495 | J15: 42.89 | K15: 14.72 | L15: A | M15: 12 | N15: 44033.53 | O15: 15191.3 | P15: 2.78 | Q15: -0.39 | S15: 12 | T15: 57465.14 | U15: 525.309 | V15: 42.92 | W15: 15.85 | Y15: 12 | Z15: 33336.95 | AA15: 182.817 | AB15: 43.37 | AC15: 6.89 | AD15: A | AE15: 12 | AF15: 18577 | AG15: 936.859 | AH15: 2.69 | AI15: -4.21 | AK15: 12 | AL15: 62401.28 | AM15: 644.593 | AN15: 43.25 | AO15: 22.29 | AP15: A | AQ15: 12 | AR15: 36224.06 | AS15: 387.393 | AT15: 43.2 | AU15: 13.94 | AW15: 12 | AX15: 7425.24 | AY15: 230.509 | AZ15: 43.26 | BA15: 20.97 | BC15: 12 | BD15: 17234.14 | BE15: 672.795 | BF15: 43.35 | BG15: 17.32 | BI15: 12 | BJ15: 46125.05 | BK15: 355.043 | BL15: 43.31 | BM15: 16.43 | BO15: 12 | BP15: 94839.37 | BQ15: 100.631 | BR15: 43.3 | BS15: 17.49 | BT15: A | BU15: 12 | BV15: 227.24 | BW15: 7.904 | BX15: 2.59 | BY15: 4.1 | BZ15: A | CA15: 12 | CB15: 72701.82 | CC15: 104.702 | CD15: 3.47 | CE15: -0.66 | CG15: 12 | CH15: 33075.84 | CI15: 180.628 | CJ15: 43.29 | CK15: 5.43 | CM15: 12 | CN15: 8091.5 | CO15: 2211.973 | CP15: 2.63 | CQ15: 0.21 | CS15: 12 | CT15: 18969.68 | CU15: 593.519 | CV15: 43.24 | CW15: 19.34 | CY15: 12 | CZ15: 378543.13 | DA15: 229.944 | DB15: 5.12 | DC15: 1.93
A16: 13 | B16: 488859.09 | C16: 212.23 | D16: 3.27 | E16: -14.96 | F16: B | G16: 13 | H16: 54500.45 | I16: 562.607 | J16: 42.91 | K16: 17.25 | L16: B | M16: 13 | N16: 39478.09 | O16: 13493.8 | P16: 2.82 | Q16: 0.99 | R16: B | S16: 13 | T16: 53907.91 | U16: 460.369 | V16: 42.92 | W16: 16.5 | X16: B | Y16: 13 | Z16: 30614.59 | AA16: 155.577 | AB16: 43.38 | AC16: 8.37 | AD16: B | AE16: 13 | AF16: 16542.86 | AG16: 753.25 | AH16: 2.72 | AI16: -1.02 | AJ16: B | AK16: 13 | AL16: 56276.67 | AM16: 538.097 | AN16: 43.27 | AO16: 20.9 | AP16: B | AQ16: 13 | AR16: 32284.09 | AS16: 312.236 | AT16: 43.2 | AU16: 14.11 | AV16: B | AW16: 13 | AX16: 6631.58 | AY16: 184.667 | AZ16: 43.25 | BA16: 19.37 | BB16: B | BC16: 13 | BD16: 15720.41 | BE16: 573.135 | BF16: 43.33 | BG16: 21.57 | BH16: B | BI16: 13 | BJ16: 40461.35 | BK16: 279.647 | BL16: 43.31 | BM16: 18.92 | BN16: B | BO16: 13 | BP16: 81425.29 | BQ16: 75.672 | BR16: 43.32 | BS16: 17.59 | BT16: B | BU16: 13 | BV16: 194.05 | BW16: 5.792 | BX16: 2.6 | BY16: 8.56 | BZ16: AB | CA16: 13 | CB16: 65577.07 | CC16: 85.198 | CD16: 3.51 | CE16: 0.21 | CF16: B | CG16: 13 | CH16: 30238.37 | CI16: 155.154 | CJ16: 43.28 | CK16: 6.95 | CL16: B | CM16: 13 | CN16: 7376.54 | CO16: 1877.236 | CP16: 2.6 | CQ16: 3.29 | CR16: B | CS16: 13 | CT16: 15907.47 | CU16: 427.254 | CV16: 43.23 | CW16: 19.66 | CX16: ABC | CY16: 13 | CZ16: 334790.91 | DA16: 177.235 | DB16: 5.14 | DC16: -8.79 | DD16: B
A17: 14 | B17: 507080.16 | C17: 227.127 | D17: 3.25 | E17: -13.99 | F17: B | G17: 14 | H17: 54337.64 | I17: 562.363 | J17: 42.86 | K17: 17.81 | L17: B | M17: 14 | N17: 38358.2 | O17: 13210.9 | P17: 2.81 | Q17: 1.17 | R17: AB | S17: 14 | T17: 50004.64 | U17: 412.266 | V17: 42.89 | W17: 16.61 | X17: B | Y17: 14 | Z17: 31110.04 | AA17: 1669.989 | AB17: 43.33 | AC17: 7.54 | AD17: ABC | AE17: 14 | AF17: 16453.74 | AG17: 778.943 | AH17: 2.64 | AI17: -0.21 | AJ17: B | AK17: 14 | AL17: 55553.56 | AM17: 517.364 | AN17: 43.23 | AO17: 22.63 | AP17: B | AQ17: 14 | AR17: 32702.18 | AS17: 317.595 | AT17: 43.15 | AU17: 13.58 | AV17: B | AW17: 14 | AX17: 6893.25 | AY17: 200.668 | AZ17: 43.2 | BA17: 21 | BB17: B | BC17: 14 | BD17: 15437.71 | BE17: 552.702 | BF17: 43.29 | BG17: 21.42 | BH17: B | BI17: 14 | BJ17: 41500.73 | BK17: 292.528 | BL17: 43.26 | BM17: 19.29 | BN17: B | BO17: 14 | BP17: 85183.44 | BQ17: 81.17 | BR17: 43.26 | BS17: 17.84 | BT17: B | BU17: 14 | BV17: 202.53 | BW17: 6.243 | BX17: 2.63 | BY17: 9.05 | BZ17: AB | CA17: 14 | CB17: 67433.72 | CC17: 89.538 | CD17: 3.51 | CE17: -0.37 | CF17: B | CG17: 14 | CH17: 30166.04 | CI17: 1122.478 | CJ17: 43.24 | CK17: 6.54 | CL17: ABC | CM17: 14 | CN17: 7428.85 | CO17: 1900.014 | CP17: 2.59 | CQ17: 2.15 | CR17: B | CS17: 14 | CT17: 16133.57 | CU17: 432.548 | CV17: 43.18 | CW17: 19.62 | CX17: B | CY17: 14 | CZ17: 336555.63 | DA17: 175.835 | DB17: 5.14 | DC17: -12.04 | DD17: B
A18: 15 | B18: 526081.38 | C18: 241.903 | D18: 3.24 | E18: -15.78 | F18: B | G18: 15 | H18: 55603.84 | I18: 581.522 | J18: 42.9 | K18: 17.2 | L18: B | M18: 15 | N18: 39061.24 | O18: 13485.2 | P18: 2.79 | Q18: 0.81 | R18: B | S18: 15 | T18: 51893.1 | U18: 437.514 | V18: 42.92 | W18: 16.67 | X18: B | Y18: 15 | Z18: 31106.33 | AA18: 2349.879 | AB18: 43.36 | AC18: 6.59 | AD18: B | AE18: 15 | AF18: 17264.16 | AG18: 826.004 | AH18: 2.65 | AI18: -2.29 | AJ18: B | AK18: 15 | AL18: 59727.54 | AM18: 581.111 | AN18: 43.24 | AO18: 21.07 | AP18: B | AQ18: 15 | AR18: 33337.84 | AS18: 328.617 | AT18: 43.18 | AU18: 14.25 | AV18: B | AW18: 15 | AX18: 6899.38 | AY18: 199.104 | AZ18: 43.23 | BA18: 21.02 | BB18: B | BC18: 15 | BD18: 15753.05 | BE18: 577.998 | BF18: 43.32 | BG18: 24.31 | BH18: B | BI18: 15 | BJ18: 41371.4 | BK18: 285.6 | BL18: 43.28 | BM18: 16.68 | BN18: ABC | BO18: 15 | BP18: 90237.22 | BQ18: 90.137 | BR18: 43.28 | BS18: 16.27 | BT18: B | BU18: 15 | BV18: 199.99 | BW18: 6.54 | BX18: 2.47 | BY18: 6.43 | BZ18: AB | CA18: 15 | CB18: 67297.05 | CC18: 821.964 | CD18: 3.51 | CE18: -1.08 | CF18: ABC | CG18: 15 | CH18: 32098.73 | CI18: 1819.141 | CJ18: 43.27 | CK18: 5.93 | CL18: B | CM18: 15 | CN18: 7497.14 | CO18: 1917.482 | CP18: 2.59 | CQ18: 1.33 | CR18: B | CS18: 15 | CT18: 17547.96 | CU18: 510.329 | CV18: 43.21 | CW18: 19.78 | CX18: B | CY18: 15 | CZ18: 340173.94 | DA18: 179.053 | DB18: 5.14 | DC18: -12.39 | DD18: B
A19: 16 | B19: 548324.13 | C19: 281.745 | D19: 3.1 | E19: -16.17 | F19: B | G19: 16 | H19: 54763.77 | I19: 575.487 | J19: 43.04 | K19: 18.04 | L19: AB | M19: 16 | N19: 39229.21 | O19: 13481.2 | P19: 2.8 | Q19: -0.31 | R19: B | S19: 16 | T19: 52893.27 | U19: 445.82 | V19: 43.06 | W19: 16.25 | X19: B | Y19: 16 | Z19: 31802.96 | AA19: 2435.334 | AB19: 43.5 | AC19: 6.64 | AD19: B | AE19: 16 | AF19: 16684.52 | AG19: 771.333 | AH19: 2.67 | AI19: -2.78 | AJ19: B | AK19: 16 | AL19: 60452.04 | AM19: 604.154 | AN19: 43.38 | AO19: 22.56 | AP19: AB | AQ19: 16 | AR19: 33994.68 | AS19: 343.195 | AT19: 43.32 | AU19: 13.96 | AV19: B | AW19: 16 | AX19: 7018.27 | AY19: 204.184 | AZ19: 43.38 | BA19: 17.89 | BB19: B | BC19: 16 | BD19: 15042.14 | BE19: 524.865 | BF19: 43.47 | BG19: 20.02 | BH19: B | BI19: 16 | BJ19: 40692.12 | BK19: 281.122 | BL19: 43.44 | BM19: 18.24 | BN19: B | BO19: 16 | BP19: 90530.87 | BQ19: 90.816 | BR19: 43.43 | BS19: 16.27 | BT19: B | BU19: 16 | BV19: 187.91 | BW19: 5.593 | BX19: 2.56 | BY19: 5 | BZ19: AB | CA19: 16 | CB19: 69113.73 | CC19: 1178.956 | CD19: 3.57 | CE19: -1.24 | CF19: AB | CG19: 16 | CH19: 32610 | CI19: 1880.768 | CJ19: 43.41 | CK19: 5.51 | CL19: B | CM19: 16 | CN19: 7660.64 | CO19: 2014.035 | CP19: 2.59 | CQ19: 0.41 | CR19: B | CS19: 16 | CT19: 18560.37 | CU19: 570.203 | CV19: 43.36 | CW19: 19.8 | CX19: B | CY19: 16 | CZ19: 374054.97 | DA19: 211.92 | DB19: 5.11 | DC19: -13.11 | DD19: B
A20: 17 | B20: 538022.94 | C20: 273.598 | D20: 3.02 | E20: -16.15 | F20: B | G20: 17 | H20: 50051.91 | I20: 477.901 | J20: 43.15 | K20: 19.52 | L20: B | M20: 17 | N20: 37914.69 | O20: 12918.8 | P20: 2.81 | Q20: -0.73 | R20: B | S20: 17 | T20: 52958.91 | U20: 444.544 | V20: 43.15 | W20: 16.57 | X20: B | Y20: 17 | Z20: 32136.47 | AA20: 2480.099 | AB20: 43.59 | AC20: 6.63 | AD20: B | AE20: 17 | AF20: 16510.02 | AG20: 760.27 | AH20: 2.7 | AI20: -3.04 | AJ20: B | AK20: 17 | AL20: 55414.28 | AM20: 512.634 | AN20: 43.5 | AO20: 19.85 | AP20: B | AQ20: 17 | AR20: 33096.04 | AS20: 324.321 | AT20: 43.41 | AU20: 13.92 | AV20: B | AW20: 17 | AX20: 7020.94 | AY20: 205.545 | AZ20: 43.47 | BA20: 19.41 | BB20: B | BC20: 17 | BD20: 15340.28 | BE20: 543.875 | BF20: 43.55 | BG20: 21.46 | BH20: B | BI20: 17 | BJ20: 39453.59 | BK20: 264.505 | BL20: 43.53 | BM20: 15.79 | BN20: AB | BO20: 17 | BP20: 89916.01 | BQ20: 89.433 | BR20: 43.52 | BS20: 16.27 | BT20: B | BU20: 17 | BV20: 182.21 | BW20: 5.307 | BX20: 2.5 | BY20: 6.83 | BZ20: AB | CA20: 17 | CB20: 64551.43 | CC20: 1011.211 | CD20: 3.66 | CE20: -0.99 | CF20: B | CG20: 17 | CH20: 32318.91 | CI20: 1857.726 | CJ20: 43.5 | CK20: 6.36 | CL20: B | CM20: 17 | CN20: 7499.32 | CO20: 1930.109 | CP20: 2.59 | CQ20: -0.19 | CR20: B | CS20: 17 | CT20: 17654.58 | CU20: 518.259 | CV20: 43.45 | CW20: 20 | CX20: B | CY20: 17 | CZ20: 346837.06 | DA20: 187.489 | DB20: 5.14 | DC20: -11.87 | DD20: B
A21: 18 | B21: 511764.47 | C21: 247.599 | D21: 3.03 | E21: -15.18 | G21: 18 | H21: 51828.57 | I21: 514.245 | J21: 43.11 | K21: 19.23 | M21: 18 | N21: 39566.36 | O21: 13589.2 | P21: 2.79 | Q21: -0.83 | S21: 18 | T21: 53377.69 | U21: 453.221 | V21: 43.11 | W21: 16.22 | Y21: 18 | Z21: 32425.79 | AA21: 2538.903 | AB21: 43.55 | AC21: 7.58 | AE21: 18 | AF21: 16701.2 | AG21: 793.759 | AH21: 2.66 | AI21: -0.91 | AK21: 18 | AL21: 58770.03 | AM21: 573.979 | AN21: 43.44 | AO21: 22.35 | AP21: A | AQ21: 18 | AR21: 34102.45 | AS21: 343.757 | AT21: 43.37 | AU21: 14.2 | AW21: 18 | AX21: 7396.34 | AY21: 226.889 | AZ21: 43.43 | BA21: 19.34 | BC21: 18 | BD21: 15515.09 | BE21: 548.214 | BF21: 43.52 | BG21: 18.39 | BI21: 18 | BJ21: 40843.22 | BK21: 280.338 | BL21: 43.49 | BM21: 16.5 | BO21: 18 | BP21: 93943.73 | BQ21: 97.297 | BR21: 43.47 | BS21: 15.58 | BU21: 18 | BV21: 199.03 | BW21: 6.276 | BX21: 2.55 | BY21: 7.55 | BZ21: A | CA21: 18 | CB21: 67241.52 | CC21: 1100.206 | CD21: 3.64 | CE21: -0.03 | CG21: 18 | CH21: 33076.14 | CI21: 1938.043 | CJ21: 43.46 | CK21: 6.31 | CM21: 18 | CN21: 7602.38 | CO21: 1955.862 | CP21: 2.64 | CQ21: 2.08 | CS21: 18 | CT21: 18497.3 | CU21: 565.275 | CV21: 43.41 | CW21: 19.57 | CY21: 18 | CZ21: 353735.41 | DA21: 194.143 | DB21: 5.13 | DC21: -12.42
A22: 19 | B22: 561284.38 | C22: 295.477 | D22: 3.04 | E22: -15.64 | G22: 19 | H22: 58430.75 | I22: 651.319 | J22: 43.04 | K22: 16.82 | L22: A | M22: 19 | N22: 43988.26 | O22: 15451.3 | P22: 2.75 | Q22: 0.7 | S22: 19 | T22: 55212.07 | U22: 481.726 | V22: 43.06 | W22: 15.62 | Y22: 19 | Z22: 34679.41 | AA22: 2903.751 | AB22: 43.5 | AC22: 6.62 | AE22: 19 | AF22: 18097.13 | AG22: 914.744 | AH22: 2.65 | AI22: -2.22 | AK22: 19 | AL22: 60914.51 | AM22: 602.198 | AN22: 43.4 | AO22: 21.36 | AQ22: 19 | AR22: 36472.84 | AS22: 390.617 | AT22: 43.33 | AU22: 13.83 | AW22: 19 | AX22: 7775.2 | AY22: 252.827 | AZ22: 43.39 | BA22: 20.6 | BC22: 19 | BD22: 16989.68 | BE22: 668.321 | BF22: 43.48 | BG22: 22.25 | BI22: 19 | BJ22: 44896.16 | BK22: 339.685 | BL22: 43.45 | BM22: 18.79 | BO22: 19 | BP22: 97499.94 | BQ22: 105.743 | BR22: 43.42 | BS22: 16.99 | BU22: 19 | BV22: 213.81 | BW22: 7.402 | BX22: 2.48 | BY22: 5.85 | BZ22: A | CA22: 19 | CB22: 71533.96 | CC22: 1253.178 | CD22: 3.63 | CE22: -0.74 | CG22: 19 | CH22: 36460.96 | CI22: 2333.783 | CJ22: 43.41 | CK22: 5.74 | CM22: 19 | CN22: 8087.56 | CO22: 2165.869 | CP22: 2.69 | CQ22: 0.6 | CS22: 19 | CT22: 19764.99 | CU22: 644.293 | CV22: 43.37 | CW22: 19.49 | CY22: 19 | CZ22: 353715.69 | DA22: 229.145 | DB22: 5.1 | DC22: -12.69 | DD22: A
A23: 20 | B23: 582933.63 | C23: 319.284 | D23: 3.04 | E23: -16.29 | F23: B | G23: 20 | H23: 55308.51 | I23: 582.952 | J23: 43.1 | K23: 17.77 | L23: AB | M23: 20 | N23: 40154.59 | O23: 13853.6 | P23: 2.79 | Q23: -0.12 | R23: B | S23: 20 | T23: 52362.23 | U23: 431.56 | V23: 43.12 | W23: 16.22 | X23: B | Y23: 20 | Z23: 33227.71 | AA23: 2648.408 | AB23: 43.55 | AC23: 6.04 | AD23: ABC | AE23: 20 | AF23: 17166.97 | AG23: 822.369 | AH23: 2.62 | AI23: -5.84 | AJ23: B | AK23: 20 | AL23: 58925.91 | AM23: 578.093 | AN23: 43.45 | AO23: 22.37 | AP23: B | AQ23: 20 | AR23: 34631.14 | AS23: 354.479 | AT23: 43.37 | AU23: 14.21 | AV23: B | AW23: 20 | AX23: 7110.69 | AY23: 212.582 | AZ23: 43.43 | BA23: 22.13 | BB23: B | BC23: 20 | BD23: 15802.43 | BE23: 570.871 | BF23: 43.52 | BG23: 19.24 | BH23: B | BI23: 20 | BJ23: 42161.55 | BK23: 297.827 | BL23: 43.49 | BM23: 16.9 | BN23: B | BO23: 20 | BP23: 92182.81 | BQ23: 93.763 | BR23: 43.48 | BS23: 15.73 | BT23: B | BU23: 20 | BV23: 187.87 | BW23: 5.538 | BX23: 2.56 | BY23: 6.43 | BZ23: AB | CA23: 20 | CB23: 65864.47 | CC23: 1085.122 | CD23: 3.54 | CE23: -1.26 | CF23: B | CG23: 20 | CH23: 34140.37 | CI23: 2048.96 | CJ23: 43.46 | CK23: 5.64 | CL23: B | CM23: 20 | CN23: 7623.41 | CO23: 1950.164 | CP23: 2.65 | CQ23: 0.95 | CR23: B | CS23: 20 | CT23: 18542.97 | CU23: 570.075 | CV23: 43.41 | CW23: 19.75 | CX23: B | CY23: 20 | CZ23: 384597.91 | DA23: 224.437 | DB23: 5.12 | DC23: -12.94
A24: 21 | B24: 514066.38 | C24: 251.391 | D24: 3.02 | E24: -16.35 | F24: B | G24: 21 | H24: 51367.59 | I24: 497.926 | J24: 43.7 | K24: 19.58 | L24: AB | M24: 21 | N24: 38607.5 | O24: 13142.6 | P24: 2.82 | Q24: -0.66 | R24: AB | S24: 21 | T24: 51230.77 | U24: 409.893 | V24: 43.71 | W24: 16.5 | X24: B | Y24: 21 | Z24: 31968.39 | AA24: 2439.808 | AB24: 44.15 | AC24: 6.75 | AD24: B | AE24: 21 | AF24: 16385.24 | AG24: 753.328 | AH24: 2.64 | AI24: -4.3 | AJ24: B | AK24: 21 | AL24: 54976.02 | AM24: 507.148 | AN24: 44.06 | AO24: 21.11 | AP24: B | AQ24: 21 | AR24: 32618.58 | AS24: 310.948 | AT24: 43.97 | AU24: 13.98 | AV24: B | AW24: 21 | AX24: 6752.93 | AY24: 188.226 | AZ24: 44.02 | BA24: 19.37 | BB24: B | BC24: 21 | BD24: 15118.78 | BE24: 518.129 | BF24: 44.11 | BG24: 20.45 | BH24: B | BI24: 21 | BJ24: 39968.57 | BK24: 269.995 | BL24: 44.09 | BM24: 17.25 | BN24: B | BO24: 21 | BP24: 89383.63 | BQ24: 86.444 | BR24: 44.08 | BS24: 14.1 | BT24: B | BU24: 21 | BV24: 169.06 | BW24: 4.352 | BX24: 2.58 | BY24: 8.06 | BZ24: AB | CA24: 21 | CB24: 65686.46 | CC24: 1080.4 | CD24: 3.53 | CE24: -1.65 | CF24: B | CG24: 21 | CH24: 33182.27 | CI24: 1916.564 | CJ24: 44.06 | CK24: 5.92 | CL24: B | CM24: 21 | CN24: 7242.73 | CO24: 1792.689 | CP24: 2.6 | CQ24: 0.99 | CR24: B | CS24: 21 | CT24: 18165.21 | CU24: 544.422 | CV24: 43.99 | CW24: 20.11 | CX24: B | CY24: 21 | CZ24: 347189.06 | DA24: 186.652 | DB24: 5.14 | DC24: -13.59 | DD24: ABC
A25: 22 | B25: 447453.75 | C25: 192.225 | D25: 3.02 | E25: -15.71 | F25: B | G25: 22 | H25: 45039.46 | I25: 390.533 | J25: 44.31 | K25: 20.65 | L25: AB | M25: 22 | N25: 35328.09 | O25: 11912 | P25: 2.83 | Q25: -1 | R25: AB | S25: 22 | T25: 50262.32 | U25: 390.079 | V25: 44.31 | W25: 17.04 | X25: B | Y25: 22 | Z25: 28648.32 | AA25: 1955.913 | AB25: 44.76 | AC25: 8.55 | AD25: B | AE25: 22 | AF25: 15122.49 | AG25: 647.335 | AH25: 2.67 | AI25: -2.02 | AJ25: B | AK25: 22 | AL25: 49908.65 | AM25: 420.737 | AN25: 44.68 | AO25: 22.36 | AP25: B | AQ25: 22 | AR25: 29425.5 | AS25: 251.243 | AT25: 44.57 | AU25: 14.1 | AV25: B | AW25: 22 | AX25: 6223.01 | AY25: 161.306 | AZ25: 44.62 | BA25: 22.7 | BB25: B | BC25: 22 | BD25: 13785.05 | BE25: 432.431 | BF25: 44.71 | BG25: 21.63 | BH25: B | BI25: 22 | BJ25: 36217.81 | BK25: 221.046 | BL25: 44.69 | BM25: 19.97 | BN25: B | BO25: 22 | BP25: 84385.55 | BQ25: 76.763 | BR25: 44.69 | BS25: 15.35 | BT25: B | BU25: 22 | BV25: 169.86 | BW25: 4.635 | BX25: 2.57 | BY25: 12.21 | BZ25: AB | CA25: 22 | CB25: 62712.53 | CC25: 975.83 | CD25: 3.56 | CE25: -1.63 | CF25: B | CG25: 22 | CH25: 29632.83 | CI25: 1536.379 | CJ25: 44.67 | CK25: 7.44 | CL25: B | CM25: 22 | CN25: 6642.15 | CO25: 1574.896 | CP25: 2.51 | CQ25: 1.86 | CR25: B | CS25: 22 | CT25: 17163.48 | CU25: 485.043 | CV25: 44.58 | CW25: 20.43 | CX25: B | CY25: 22 | CZ25: 322741.19 | DA25: 161.195 | DB25: 5.16 | DC25: -13.97 | DD25: B
A26: 23 | B26: 357395.56 | C26: 121.887 | D26: 3.04 | E26: -14.17 | F26: B | G26: 23 | H26: 39313.04 | I26: 314.787 | J26: 44.22 | K26: 18.7 | L26: A | M26: 23 | N26: 30974.81 | O26: 10674.1 | P26: 2.82 | Q26: 3.07 | S26: 23 | T26: 44072.64 | U26: 304.335 | V26: 44.23 | W26: 17.71 | Y26: 23 | Z26: 25782.07 | AA26: 1609.909 | AB26: 44.67 | AC26: 9.6 | AE26: 23 | AF26: 13430.23 | AG26: 536.738 | AH26: 2.62 | AI26: 1.7 | AK26: 23 | AL26: 42637.56 | AM26: 311.216 | AN26: 44.61 | AO26: 22.1 | AQ26: 23 | AR26: 25634.94 | AS26: 192.211 | AT26: 44.48 | AU26: 13.55 | AW26: 23 | AX26: 5624.59 | AY26: 151.615 | AZ26: 44.52 | BA26: 19.79 | BB26: A | BC26: 23 | BD26: 12651.61 | BE26: 372.939 | BF26: 44.6 | BG26: 23.14 | BI26: 23 | BJ26: 32619.14 | BK26: 181.461 | BL26: 44.59 | BM26: 20.55 | BO26: 23 | BP26: 73059.77 | BQ26: 64.165 | BR26: 44.6 | BS26: 17.25 | BT26: A | BU26: 23 | BV26: 160.22 | BW26: 3.927 | BX26: 2.61 | BY26: 13.83 | BZ26: A | CA26: 23 | CB26: 50342.57 | CC26: 623.731 | CD26: 3.6 | CE26: -0.88 | CG26: 23 | CH26: 26285.41 | CI26: 1233.525 | CJ26: 44.58 | CK26: 8.74 | CM26: 23 | CN26: 5949.22 | CO26: 1260.508 | CP26: 2.53 | CQ26: 4.6 | CS26: 23 | CT26: 14265.76 | CU26: 339.551 | CV26: 44.48 | CW26: 20.54 | CY26: 23 | CZ26: 286808.09 | DA26: 129.664 | DB26: 5.19 | DC26: -13.17
A27: 24 | B27: 370487.19 | C27: 128.247 | D27: 3.06 | E27: -13.4 | F27: B | G27: 24 | H27: 40685.86 | I27: 315.023 | J27: 43.9 | K27: 16.15 | L27: AB | M27: 24 | N27: 30002.19 | O27: 10777.9 | P27: 2.73 | Q27: 4.16 | R27: B | S27: 24 | T27: 44852.43 | U27: 322.987 | V27: 43.9 | W27: 17.67 | X27: B | Y27: 24 | Z27: 23950.15 | AA27: 1399.039 | AB27: 44.35 | AC27: 10.46 | AD27: B | AE27: 24 | AF27: 13586.33 | AG27: 536.237 | AH27: 2.62 | AI27: 2.84 | AJ27: B | AK27: 24 | AL27: 43280.9 | AM27: 315.258 | AN27: 44.28 | AO27: 22.3 | AP27: AB | AQ27: 24 | AR27: 26331.38 | AS27: 202.403 | AT27: 44.16 | AU27: 13.91 | AV27: B | AW27: 24 | AX27: 5826.76 | AY27: 142.071 | AZ27: 44.19 | BA27: 22.8 | BB27: B | BC27: 24 | BD27: 12784.33 | BE27: 374.184 | BF27: 44.28 | BG27: 22.48 | BH27: B | BI27: 24 | BJ27: 31940.92 | BK27: 172.796 | BL27: 44.27 | BM27: 21.4 | BN27: B | BO27: 24 | BP27: 75286.91 | BQ27: 62.068 | BR27: 44.28 | BS27: 17.12 | BT27: B | BU27: 24 | BV27: 143.7 | BW27: 5.336 | BX27: 2.67 | BY27: 11.18 | BZ27: ABC | CA27: 24 | CB27: 49867.56 | CC27: 716.281 | CD27: 3.17 | CE27: 1.1 | CF27: AB | CG27: 24 | CH27: 25405.29 | CI27: 1161.122 | CJ27: 44.25 | CK27: 9.57 | CL27: B | CM27: 24 | CN27: 5984.51 | CO27: 1272.738 | CP27: 2.53 | CQ27: 6.05 | CR27: B | CS27: 24 | CT27: 13578.53 | CU27: 303.507 | CV27: 44.16 | CW27: 20.08 | CX27: B | CY27: 24 | CZ27: 274358.44 | DA27: 119.495 | DB27: 5.19 | DC27: -11.85 | DD27: B
A28: 25 | B28: 308354.22 | C28: 98.56 | D28: 3.03 | E28: -14.24 | F28: B | G28: 25 | H28: 40815.52 | I28: 329.346 | J28: 44.58 | K28: 13.81 | L28: AB | M28: 25 | N28: 30907.33 | O28: 10846.8 | P28: 2.71 | Q28: -3.19 | R28: B | S28: 25 | T28: 44346.11 | U28: 327.011 | V28: 44.6 | W28: 16.77 | X28: B | Y28: 25 | Z28: 23809.22 | AA28: 1477.769 | AB28: 45.06 | AC28: 8.89 | AD28: AB | AE28: 25 | AF28: 12596.1 | AG28: 506.228 | AH28: 2.57 | AI28: -0.29 | AJ28: B | AK28: 25 | AL28: 40943.72 | AM28: 303.812 | AN28: 44.99 | AO28: 21.52 | AP28: B | AQ28: 25 | AR28: 25220.22 | AS28: 200.014 | AT28: 44.86 | AU28: 14.3 | AV28: B | AW28: 25 | AX28: 5687.04 | AY28: 141.837 | AZ28: 44.9 | BA28: 19.21 | BB28: B | BC28: 25 | BD28: 12113.28 | BE28: 363.591 | BF28: 44.97 | BG28: 24.48 | BH28: B | BI28: 25 | BJ28: 30540.26 | BK28: 164.7 | BL28: 44.97 | BM28: 15.97 | BN28: B | BO28: 25 | BP28: 72757.86 | BQ28: 61.399 | BR28: 44.98 | BS28: 15.6 | BT28: B | BU28: 25 | BV28: 140.1 | BW28: 6.467 | BX28: 2.57 | BY28: 8.23 | BZ28: AB | CA28: 25 | CB28: 50311.29 | CC28: 783.594 | CD28: 3.11 | CE28: -0.96 | CF28: B | CG28: 25 | CH28: 24963.61 | CI28: 1185.354 | CJ28: 44.96 | CK28: 8.19 | CL28: B | CM28: 25 | CN28: 5582.63 | CO28: 1214.285 | CP28: 2.49 | CQ28: 2.09 | CR28: B | CS28: 25 | CT28: 13862.97 | CU28: 337.103 | CV28: 44.85 | CW28: 20.59 | CX28: B | CY28: 25 | CZ28: 260256.88 | DA28: 116.308 | DB28: 5.19 | DC28: -12.86 | DD28: B
A29: 26 | B29: 359167.41 | C29: 122.582 | D29: 2.99 | E29: -15.5 | G29: 26 | H29: 49213.57 | I29: 439.712 | J29: 44.12 | K29: 14.32 | M29: 26 | N29: 36165.23 | O29: 12098 | P29: 2.77 | Q29: -9.51 | S29: 26 | T29: 49538.16 | U29: 378.493 | V29: 44.15 | W29: 16.36 | Y29: 26 | Z29: 28918.3 | AA29: 1942.039 | AB29: 44.59 | AC29: 5.87 | AE29: 26 | AF29: 15426.53 | AG29: 674.71 | AH29: 2.59 | AI29: -3.17 | AK29: 26 | AL29: 55119.71 | AM29: 484.914 | AN29: 44.49 | AO29: 22.56 | AQ29: 26 | AR29: 32218.11 | AS29: 297.602 | AT29: 44.4 | AU29: 13.9 | AW29: 26 | AX29: 7002.58 | AY29: 199.536 | AZ29: 44.45 | BA29: 21.15 | BC29: 26 | BD29: 14719.03 | BE29: 480.692 | BF29: 44.53 | BG29: 19.56 | BI29: 26 | BJ29: 38805.73 | BK29: 245.341 | BL29: 44.52 | BM29: 17.17 | BO29: 26 | BP29: 87637.01 | BQ29: 82.833 | BR29: 44.51 | BS29: 16.77 | BU29: 26 | BV29: 154.29 | BW29: 7.55 | BX29: 2.65 | BY29: 3.61 | BZ29: A | CA29: 26 | CB29: 65084.37 | CC29: 1220.9 | CD29: 3.08 | CE29: -1.64 | CG29: 26 | CH29: 30037.37 | CI29: 1541.177 | CJ29: 44.51 | CK29: 5.31 | CM29: 26 | CN29: 7513.65 | CO29: 1921.769 | CP29: 2.58 | CQ29: -2.01 | CS29: 26 | CT29: 17891.06 | CU29: 517.574 | CV29: 44.41 | CW29: 20.25 | CY29: 26 | CZ29: 324310.47 | DA29: 163.194 | DB29: 5.13 | DC29: -14.01
A30: 27 | B30: 487106.44 | C30: 226.102 | D30: 2.99 | E30: -15.39 | F30: B | G30: 27 | H30: 55714.86 | I30: 572.168 | J30: 43.28 | K30: 14.45 | L30: B | M30: 27 | N30: 41062.29 | O30: 14464.8 | P30: 2.65 | Q30: -9.03 | R30: B | S30: 27 | T30: 51967.81 | U30: 426.842 | V30: 43.31 | W30: 16.05 | X30: B | Y30: 27 | Z30: 31671.54 | AA30: 2409.562 | AB30: 43.75 | AC30: 6.59 | AD30: B | AE30: 27 | AF30: 17303.43 | AG30: 844.129 | AH30: 2.61 | AI30: -2.81 | AJ30: B | AK30: 27 | AL30: 58511.32 | AM30: 552.903 | AN30: 43.65 | AO30: 19.96 | AP30: B | AQ30: 27 | AR30: 35597.68 | AS30: 371.245 | AT30: 43.57 | AU30: 14.2 | AV30: B | AW30: 27 | AX30: 2327.35 | AY30: 125.668 | AZ30: 31.47 | BA30: 13.47 | BB30: ABC | BC30: 27 | BD30: 16221.23 | BE30: 598.041 | BF30: 43.71 | BG30: 19.85 | BH30: B | BI30: 27 | BJ30: 42099.4 | BK30: 291.434 | BL30: 43.69 | BM30: 13.87 | BN30: B | BO30: 27 | BP30: 94740.18 | BQ30: 756.606 | BR30: 43.67 | BS30: 14.22 | BT30: ABC | BU30: 27 | BV30: 142.38 | BW30: 6.005 | BX30: 2.57 | BY30: 4.58 | BZ30: AB | CA30: 27 | CB30: 73041.92 | CC30: 1541.1 | CD30: 3.1 | CE30: -1.44 | CF30: B | CG30: 27 | CH30: 33264.69 | CI30: 1942.299 | CJ30: 43.68 | CK30: 5.65 | CL30: B | CM30: 27 | CN30: 8252.29 | CO30: 2298.532 | CP30: 2.63 | CQ30: -0.3 | CR30: B | CS30: 27 | CT30: 19251.71 | CU30: 606.439 | CV30: 43.59 | CW30: 19.69 | CX30: B | CY30: 27 | CZ30: 348973.22 | DA30: 190.503 | DB30: 5.13 | DC30: -11.61 | DD30: B
A31: 28 | B31: 451235.78 | C31: 193.56 | D31: 3.06 | E31: -13.68 | F31: B | G31: 28 | H31: 48169.09 | I31: 434.177 | J31: 42.94 | K31: 14.3 | L31: AB | M31: 28 | N31: 38374.16 | O31: 12798.4 | P31: 2.84 | Q31: -4.15 | R31: AB | S31: 28 | T31: 54283.86 | U31: 466.929 | V31: 42.93 | W31: 16.91 | X31: B | Y31: 28 | Z31: 28918.7 | AA31: 2052.32 | AB31: 43.39 | AC31: 9.61 | AD31: B | AE31: 28 | AF31: 15309.35 | AG31: 650.451 | AH31: 2.7 | AI31: 2.3 | AJ31: B | AK31: 28 | AL31: 47215.16 | AM31: 372.434 | AN31: 43.33 | AO31: 22.76 | AP31: B | AQ31: 28 | AR31: 30538.98 | AS31: 276.481 | AT31: 43.21 | AU31: 14.28 | AV31: B | AW31: 28 | AX31: 6276.51 | AY31: 808.401 | AZ31: 43.25 | BA31: 22.44 | BB31: AB | BC31: 28 | BD31: 14737.61 | BE31: 495.356 | BF31: 43.34 | BG31: 18.64 | BH31: B | BI31: 28 | BJ31: 37695.12 | BK31: 231.715 | BL31: 43.32 | BM31: 11.08 | BN31: B | BO31: 28 | BP31: 85743.16 | BQ31: 817.296 | BR31: 43.31 | BS31: 17.03 | BT31: B | BU31: 28 | BV31: 136.41 | BW31: 5.859 | BX31: 2.6 | BY31: 9.9 | BZ31: AB | CA31: 28 | CB31: 57684.43 | CC31: 978.633 | CD31: 3.1 | CE31: 0.38 | CF31: B | CG31: 28 | CH31: 29661.28 | CI31: 1590.247 | CJ31: 43.29 | CK31: 8.82 | CL31: ABC | CM31: 28 | CN31: 7549.88 | CO31: 2026.897 | CP31: 2.53 | CQ31: 4.71 | CR31: B | CS31: 28 | CT31: 16013.01 | CU31: 431.114 | CV31: 43.23 | CW31: 19.64 | CX31: B | CY31: 28 | CZ31: 315716.44 | DA31: 156.057 | DB31: 5.14 | DC31: -11.39 | DD31: B
A32: 29 | B32: 295001.97 | C32: 84.651 | D32: 3.03 | E32: -12.01 | F32: B | G32: 29 | H32: 40330.72 | I32: 317.365 | J32: 44.03 | K32: 17.82 | L32: AB | M32: 29 | N32: 31670.81 | O32: 11031.7 | P32: 2.75 | Q32: -0.64 | R32: B | S32: 29 | T32: 50290.21 | U32: 392.458 | V32: 44.02 | W32: 17.38 | X32: B | Y32: 29 | Z32: 23678.13 | AA32: 1370.084 | AB32: 44.49 | AC32: 10.98 | AD32: B | AE32: 29 | AF32: 12662.57 | AG32: 463.241 | AH32: 2.65 | AI32: 3.68 | AJ32: B | AK32: 29 | AL32: 38786.2 | AM32: 252.297 | AN32: 44.44 | AO32: 21.39 | AP32: B | AQ32: 29 | AR32: 25558.49 | AS32: 190.639 | AT32: 44.3 | AU32: 14.56 | AV32: B | AW32: 29 | AX32: 5940.14 | AY32: 643.53 | AZ32: 44.32 | BA32: 19.23 | BB32: B | BC32: 29 | BD32: 12432.99 | BE32: 350.875 | BF32: 44.42 | BG32: 20.66 | BH32: B | BI32: 29 | BJ32: 31891.29 | BK32: 161.648 | BL32: 44.4 | BM32: 10.4 | BN32: B | BO32: 29 | BP32: 72811.55 | BQ32: 589.139 | BR32: 44.42 | BS32: 15.04 | BT32: B | BU32: 29 | BV32: 127.43 | BW32: 4.862 | BX32: 2.6 | BY32: 14.8 | BZ32: AB | CA32: 29 | CB32: 48379.23 | CC32: 687.485 | CD32: 3.1 | CE32: 1.1 | CF32: B | CG32: 29 | CH32: 24739.6 | CI32: 1096.647 | CJ32: 44.38 | CK32: 9.79 | CL32: B | CM32: 29 | CN32: 3033.84 | CO32: 457.449 | CP32: 2.53 | CQ32: 10.46 | CR32: AB | CS32: 29 | CT32: 13085.93 | CU32: 282.223 | CV32: 44.3 | CW32: 20.23 | CX32: B | CY32: 29 | CZ32: 274626.47 | DA32: 119.608 | DB32: 5.18 | DC32: -11.28 | DD32: B
A33: 30 | B33: 284598.75 | C33: 77.235 | D33: 3.03 | E33: -13.27 | F33: B | G33: 30 | H33: 40850.41 | I33: 333.029 | J33: 44.5 | K33: 16.74 | L33: AB | M33: 30 | N33: 31738.76 | O33: 11167 | P33: 2.7 | Q33: -3.58 | R33: B | S33: 30 | T33: 56664.84 | U33: 509.429 | V33: 44.46 | W33: 16.29 | X33: B | Y33: 30 | Z33: 24669.95 | AA33: 1432.026 | AB33: 44.97 | AC33: 8.84 | AD33: B | AE33: 30 | AF33: 12803.97 | AG33: 474.644 | AH33: 2.61 | AI33: -2.07 | AJ33: B | AK33: 30 | AL33: 42766.56 | AM33: 316.612 | AN33: 44.91 | AO33: 22.62 | AP33: B | AQ33: 30 | AR33: 26855.32 | AS33: 209.094 | AT33: 44.77 | AU33: 14.43 | AV33: B | AW33: 30 | AX33: 6047.07 | AY33: 668.206 | AZ33: 44.81 | BA33: 19.54 | BB33: B | BC33: 30 | BD33: 12184.16 | BE33: 331.311 | BF33: 44.9 | BG33: 17.01 | BH33: B | BI33: 30 | BJ33: 31911.63 | BK33: 160.117 | BL33: 44.89 | BM33: 8.41 | BN33: B | BO33: 30 | BP33: 74122.76 | BQ33: 606.609 | BR33: 44.9 | BS33: 14.72 | BT33: AB | BU33: 30 | BV33: 127.62 | BW33: 4.923 | BX33: 2.6 | BY33: 9.33 | BZ33: AB | CA33: 30 | CB33: 54272.46 | CC33: 851.561 | CD33: 3.13 | CE33: -0.64 | CF33: B | CG33: 30 | CH33: 25867.19 | CI33: 1168.113 | CJ33: 44.88 | CK33: 8.32 | CL33: B | CM33: 30 | CN33: 5742.2 | CO33: 1256.824 | CP33: 2.44 | CQ33: 4.06 | CR33: B | CS33: 30 | CT33: 15423.85 | CU33: 384.671 | CV33: 44.77 | CW33: 20.21 | CX33: B | CY33: 30 | CZ33: 280284.59 | DA33: 126.494 | DB33: 5.13 | DC33: -11.71 | DD33: ABC
A34: 31 | B34: 196164.39 | C34: 35.159 | D34: 3.17 | E34: -12.04 | G34: 31 | H34: 40952.56 | I34: 316.07 | J34: 44.15 | K34: 18.16 | L34: B | M34: 31 | N34: 33635.34 | O34: 11607.1 | P34: 2.73 | Q34: -6.18 | R34: B | S34: 31 | T34: 50683.08 | U34: 398.315 | V34: 44.14 | W34: 16.89 | X34: B | Y34: 31 | Z34: 27655.63 | AA34: 1819.87 | AB34: 44.59 | AC34: 7.49 | AD34: B | AE34: 31 | AF34: 13578.11 | AG34: 519.974 | AH34: 2.69 | AI34: -4.06 | AJ34: B | AK34: 31 | AL34: 44797.07 | AM34: 346.871 | AN34: 44.54 | AO34: 21.69 | AP34: B | AQ34: 31 | AR34: 28264.15 | AS34: 234.485 | AT34: 44.41 | AU34: 14.47 | AV34: B | AW34: 31 | AX34: 6465.23 | AY34: 773.387 | AZ34: 44.45 | BA34: 20.37 | BB34: B | BC34: 31 | BD34: 12649.26 | BE34: 360.329 | BF34: 44.53 | BG34: 18.54 | BH34: B | BI34: 31 | BJ34: 32420.83 | BK34: 166.272 | BL34: 44.52 | BM34: 7.25 | BN34: B | BO34: 31 | BP34: 67644.03 | BQ34: 505.14 | BR34: 44.54 | BS34: 14.81 | BT34: B | BU34: 31 | BV34: 130.69 | BW34: 5.135 | BX34: 2.6 | BY34: 9.14 | BZ34: AB | CA34: 31 | CB34: 32668.9 | CC34: 317.147 | CD34: 3.07 | CE34: 1.33 | CF34: B | CG34: 31 | CH34: 28184.25 | CI34: 1395.418 | CJ34: 44.51 | CK34: 6.76 | CL34: B | CM34: 31 | CN34: 6526.77 | CO34: 1532.889 | CP34: 2.48 | CQ34: 0.79 | CR34: B | CS34: 31 | CT34: 16308.55 | CU34: 436.707 | CV34: 44.41 | CW34: 20.51 | CX34: B | CY34: 31 | CZ34: 301680.41 | DA34: 145.646 | DB34: 5.09 | DC34: -13.24 | DD34: B
A35: Итого | B35: 14076482.92 | C35: 188.794 | D35: 3.28 | E35: -15.02 | F35: ABC | G35: Итого | H35: 1572741.62 | I35: 492.395 | J35: 43.59 | K35: 17.3 | L35: AB | M35: Итого | N35: 1173832.21 | O35: 393416.8 | P35: 2.87 | Q35: -0.53 | R35: AB | S35: Итого | T35: 1594373.5 | U35: 419.493 | V35: 43.6 | W35: 16.59 | X35: ABC | Y35: Итого | Z35: 961840.37 | AA35: 1267.554 | AB35: 44.04 | AC35: 7.5 | AD35: ABC | AE35: Итого | AF35: 495623.57 | AG35: 707.748 | AH35: 2.73 | AI35: -1.73 | AJ35: ABC | AK35: Итого | AL35: 1696408.91 | AM35: 504.483 | AN35: 43.95 | AO35: 21.79 | AP35: AB | AQ35: Итого | AR35: 1009434.6 | AS35: 315.131 | AT35: 43.86 | AU35: 14.35 | AV35: ABC | AW35: Итого | AX35: 209319.55 | AY35: 269.792 | AZ35: 43.52 | BA35: 19.97 | BB35: ABC | BC35: Итого | BD35: 463669.87 | BE35: 515.825 | BF35: 44 | BG35: 20.76 | BH35: AB | BI35: Итого | BJ35: 1220518.85 | BK35: 261.378 | BL35: 43.98 | BM35: 16.67 | BN35: ABC | BO35: Итого | BP35: 2692556.1 | BQ35: 178.67 | BR35: 43.97 | BS35: 16.73 | BT35: ABC | BU35: Итого | BV35: 5484.75 | BW35: 6.119 | BX35: 2.7 | BY35: 10.66 | BZ35: ABC | CA35: Итого | CB35: 1990638.77 | CC35: 566.881 | CD35: 3.42 | CE35: 0.06 | CF35: ABC | CG35: Итого | CH35: 979759.89 | CI35: 1005.667 | CJ35: 43.95 | CK35: 6.46 | CL35: ABC | CM35: Итого | CN35: 224810.31 | CO35: 1272.877 | CP35: 2.61 | CQ35: 1.82 | CR35: ABC | CS35: Итого | CT35: 538859.81 | CU35: 505.286 | CV35: 43.89 | CW35: 20.05 | CX35: ABC | CY35: Итого | CZ35: 10663949.19 | DA35: 191.011 | DB35: 5.14 | DC35: -7.39 | DD35: ABC
A36: ТЭС-1 | G36: ТЭС-2 | M36: ТЭС-3 | S36: Энергодар
A37: Данные по объекту ТЭС-1 (осн.) за 3/17. | G37: Данные по объекту ТЭС-2 (осн.) за 3/17. | M37: Данные по объекту ТЭС-3 (осн.) за 3/17. | S37: Данные по объекту Быт (осн.) за 3/17.
A38: День | B38: V, м3 | C38: dP, кгс/м2 | D38: Pабс, кгс/см2 | E38: T, °C | F38: ABC | G38: День | H38: V, м3 | I38: dP, кгс/м2 | J38: Pабс, кгс/см2 | K38: T, °C | L38: ABC | M38: День | N38: V, м3 | O38: dP, кгс/м2 | P38: Pабс, кгс/см2 | Q38: T, °C | R38: ABC | S38: День | T38: V, м3 | U38: dP, кгс/м2 | V38: Pабс, кгс/см2 | W38: T, °C | X38: ABC
A39: 1 | B39: 0 | C39: 0 | D39: 43.18 | E39: 7.07 | F39: B | G39: 1 | H39: 0 | I39: 0 | J39: 44.18 | K39: 7.41 | L39: ABC | M39: 1 | N39: 13194.88 | O39: 17.526 | P39: 44.66 | Q39: 7.96 | R39: ABC | S39: 1 | T39: 73055.42 | U39: 178.968 | V39: 44.74 | W39: 6.58 | X39: ABC | Y39: =B39+H39+N39+T39 -> 86250.3
A40: 2 | B40: 0 | C40: 0 | D40: 44.31 | E40: 7.74 | F40: B | G40: 2 | H40: 0 | I40: 0 | J40: 44.98 | K40: 8.16 | L40: B | M40: 2 | N40: 0 | O40: 0 | P40: 45.15 | Q40: 9.14 | R40: B | S40: 2 | T40: 70826.23 | U40: 167.117 | V40: 45.14 | W40: 6.51 | X40: B | Y40: =B40+H40+N40+T40 -> 70826.23
A41: 3 | B41: 0 | C41: 0 | D41: 44.04 | E41: 4.78 | F41: B | G41: 3 | H41: 0 | I41: 0 | J41: 44.61 | K41: 5.38 | L41: B | M41: 3 | N41: 0 | O41: 0 | P41: 44.84 | Q41: 6.7 | R41: B | S41: 3 | T41: 72933.54 | U41: 179.172 | V41: 44.83 | W41: 5.5 | X41: B | Y41: 72933.54
A42: 4 | B42: 0 | C42: 0 | D42: 44.08 | E42: 5.28 | G42: 4 | H42: 0 | I42: 0 | J42: 44.58 | K42: 5.78 | M42: 4 | N42: 0 | O42: 0 | P42: 44.78 | Q42: 6.84 | S42: 4 | T42: 70670.61 | U42: 175.607 | V42: 44.77 | W42: 6.26 | Y42: 70670.61
A43: 5 | B43: 0 | C43: 0 | D43: 44.1 | E43: 6.5 | G43: 5 | H43: 0 | I43: 0 | J43: 43.93 | K43: 6.92 | M43: 5 | N43: 0 | O43: 0 | P43: 44.12 | Q43: 7.84 | S43: 5 | T43: 72539.38 | U43: 187.999 | V43: 44.11 | W43: 6.84 | Y43: 72539.38
A44: 6 | B44: 0 | C44: 0 | D44: 43.25 | E44: 5.48 | F44: B | G44: 6 | H44: 0 | I44: 0 | J44: 43.26 | K44: 6.06 | L44: B | M44: 6 | N44: 136990.34 | O44: 282.932 | P44: 43.45 | Q44: 7.94 | R44: AB | S44: 6 | T44: 78614.64 | U44: 1819.416 | V44: 43.43 | W44: 6.17 | X44: ABC | Y44: 215604.98
A45: 7 | B45: 0 | C45: 0 | D45: 43.27 | E45: 7.34 | F45: B | G45: 7 | H45: 0 | I45: 0 | J45: 42.9 | K45: 7.84 | L45: B | M45: 7 | N45: 140125.95 | O45: 330.513 | P45: 43.53 | Q45: 8.96 | R45: AB | S45: 7 | T45: 67703.23 | U45: 1665.225 | V45: 43.52 | W45: 7.37 | X45: B | Y45: 207829.18
A46: 8 | B46: 0 | C46: 0 | D46: 42.91 | E46: 3.05 | G46: 8 | H46: 0 | I46: 0 | J46: 43.5 | K46: 3.54 | M46: 8 | N46: 0 | O46: 0 | P46: 43.68 | Q46: 4.73 | S46: 8 | T46: 81682.37 | U46: 2298.389 | V46: 43.67 | W46: 5.02 | Y46: 81682.37
A47: 9 | B47: 0 | C47: 0 | D47: 43.67 | E47: 6.72 | F47: B | G47: 9 | H47: 0 | I47: 0 | J47: 43.96 | K47: 7.17 | L47: B | M47: 9 | N47: 0 | O47: 0 | P47: 44.11 | Q47: 8.33 | R47: B | S47: 9 | T47: 71222.87 | U47: 1826.159 | V47: 44.1 | W47: 7.09 | X47: B | Y47: 71222.87
A48: 10 | B48: 0 | C48: 0 | D48: 44.15 | E48: 7.91 | F48: B | G48: 10 | H48: 0 | I48: 0 | J48: 44.02 | K48: 8.39 | L48: B | M48: 10 | N48: 147828.31 | O48: 304.455 | P48: 44.13 | Q48: 8.64 | R48: AB | S48: 10 | T48: 68434.24 | U48: 1700.318 | V48: 44.11 | W48: 7.66 | X48: B | Y48: 216262.55
A49: 11 | B49: 0 | C49: 0 | D49: 43.3 | E49: 4.26 | G49: 11 | H49: 0 | I49: 0 | J49: 43.51 | K49: 4.78 | M49: 11 | N49: 116768.28 | O49: 305.123 | P49: 43.64 | Q49: 5.22 | R49: A | S49: 11 | T49: 76276.63 | U49: 2037.315 | V49: 43.63 | W49: 5.48 | Y49: 193044.91
A50: 12 | B50: 0 | C50: 0 | D50: 42.92 | E50: 4.06 | G50: 12 | H50: 0 | I50: 0 | J50: 43.3 | K50: 4.57 | M50: 12 | N50: 0 | O50: 0 | P50: 43.45 | Q50: 5.81 | S50: 12 | T50: 79665.41 | U50: 2232.828 | V50: 43.44 | W50: 5.51 | Y50: 79665.41
A51: 13 | B51: 0 | C51: 0 | D51: 43.13 | E51: 7.39 | F51: B | G51: 13 | H51: 0 | I51: 0 | J51: 43.29 | K51: 7.82 | L51: B | M51: 13 | N51: 0 | O51: 0 | P51: 43.43 | Q51: 8.91 | R51: B | S51: 13 | T51: 69690.84 | U51: 1789.134 | V51: 43.42 | W51: 7.34 | X51: B | Y51: 69690.84
A52: 14 | B52: 0 | C52: 0 | D52: 43.08 | E52: 7.92 | F52: B | G52: 14 | H52: 0 | I52: 0 | J52: 43.25 | K52: 8.41 | L52: B | M52: 14 | N52: 28376.32 | O52: 32.244 | P52: 43.39 | Q52: 9.45 | R52: AB | S52: 14 | T52: 68399.76 | U52: 1711.293 | V52: 43.38 | W52: 7.66 | X52: B | Y52: 96776.08
A53: 15 | B53: 0 | C53: 0 | D53: 43.27 | E53: 5.76 | F53: B | G53: 15 | H53: 0 | I53: 0 | J53: 43.34 | K53: 6.22 | L53: B | M53: 15 | N53: 179981.41 | O53: 413.146 | P53: 43.42 | Q53: 7.14 | R53: AB | S53: 15 | T53: 74704.1 | U53: 1935.657 | V53: 43.4 | W53: 6.32 | X53: B | Y53: 254685.51
A54: 16 | B54: 0 | C54: 0 | D54: 40.83 | E54: 2.78 | F54: B | G54: 16 | H54: 0 | I54: 0 | J54: 41.74 | K54: 3.35 | L54: B | M54: 16 | N54: 89034.43 | O54: 218.601 | P54: 43.56 | Q54: 4.21 | R54: AB | S54: 16 | T54: 76075.2 | U54: 2053.421 | V54: 43.55 | W54: 5.36 | X54: B | Y54: 165109.63
A55: 17 | B55: 0 | C55: 0 | D55: 41.92 | E55: 5.25 | F55: B | G55: 17 | H55: 0 | I55: 0 | J55: 43.52 | K55: 5.67 | L55: B | M55: 17 | N55: 0 | O55: 0 | P55: 43.65 | Q55: 6.75 | R55: B | S55: 17 | T55: 70387.29 | U55: 1794.797 | V55: 43.64 | W55: 6.43 | X55: B | Y55: 70387.29
A56: 18 | B56: 0 | C56: 0 | D56: 43.31 | E56: 5.95 | G56: 18 | H56: 0 | I56: 0 | J56: 43.53 | K56: 6.33 | M56: 18 | N56: 152310.55 | O56: 290.029 | P56: 43.61 | Q56: 7.68 | R56: A | S56: 18 | T56: 72872.3 | U56: 1919.217 | V56: 43.6 | W56: 6.74 | Y56: 225182.85
A57: 19 | B57: 0 | C57: 0 | D57: 43.46 | E57: 4.66 | G57: 19 | H57: 0 | I57: 0 | J57: 43.43 | K57: 5.25 | M57: 19 | N57: 129019.95 | O57: 295.807 | P57: 43.58 | Q57: 7.38 | R57: A | S57: 19 | T57: 77799.62 | U57: 2101.335 | V57: 43.57 | W57: 6.48 | Y57: 206819.57
A58: 20 | B58: 0 | C58: 0 | D58: 43.12 | E58: 3.08 | F58: B | G58: 20 | H58: 0 | I58: 0 | J58: 43.49 | K58: 3.65 | L58: B | M58: 20 | N58: 0 | O58: 0 | P58: 43.62 | Q58: 4.89 | R58: B | S58: 20 | T58: 74605.89 | U58: 1997.383 | V58: 43.61 | W58: 5.6 | X58: B | Y58: 74605.89
A59: 21 | B59: 0 | C59: 0 | D59: 42.79 | E59: 3.02 | F59: B | G59: 21 | H59: 0 | I59: 0 | J59: 44.06 | K59: 3.57 | L59: B | M59: 21 | N59: 0 | O59: 0 | P59: 44.21 | Q59: 4.72 | R59: B | S59: 21 | T59: 72848.12 | U59: 1954.444 | V59: 44.2 | W59: 6.25 | X59: B | Y59: 72848.12
A60: 22 | B60: 0 | C60: 0 | D60: 43.89 | E60: 8.19 | F60: B | G60: 22 | H60: 0 | I60: 0 | J60: 44.71 | K60: 8.62 | L60: B | M60: 22 | N60: 65187.93 | O60: 70.989 | P60: 44.81 | Q60: 10.33 | R60: AB | S60: 22 | T60: 66057.52 | U60: 1618.776 | V60: 44.79 | W60: 8.57 | X60: B | Y60: 131245.45
A61: 23 | B61: 0 | C61: 0 | D61: 44.29 | E61: 11.36 | G61: 23 | H61: 0 | I61: 0 | J61: 44.67 | K61: 11.71 | M61: 23 | N61: 334012.66 | O61: 567.421 | P61: 44.69 | Q61: 8.07 | S61: 23 | T61: 56319.27 | U61: 1183.756 | V61: 44.68 | W61: 9.05 | Y61: 390331.93
A62: 24 | B62: 0 | C62: 0 | D62: 43.39 | E62: 11.17 | F62: B | G62: 24 | H62: 0 | I62: 0 | J62: 44.26 | K62: 11.68 | L62: B | M62: 24 | N62: 144462.28 | O62: 221.416 | P62: 44.37 | Q62: 9.09 | R62: AB | S62: 24 | T62: 58014.62 | U62: 1213.834 | V62: 44.36 | W62: 9.34 | X62: B | Y62: 202476.9
A63: 25 | B63: 0 | C63: 0 | D63: 43.59 | E63: 8.26 | F63: B | G63: 25 | H63: 0 | I63: 0 | J63: 44.97 | K63: 8.76 | L63: B | M63: 25 | N63: 0 | O63: 0 | P63: 45.08 | Q63: 9.62 | R63: B | S63: 25 | T63: 55258.23 | U63: 1214.379 | V63: 45.07 | W63: 8.6 | X63: B | Y63: 55258.23
A64: 26 | B64: 0 | C64: 0 | D64: 43.35 | E64: 3.71 | G64: 26 | H64: 0 | I64: 0 | J64: 44.51 | K64: 4.3 | M64: 26 | N64: 0 | O64: 0 | P64: 44.64 | Q64: 5.96 | S64: 26 | T64: 70195.16 | U64: 1719.132 | V64: 44.62 | W64: 6.29 | Y64: 70195.16
A65: 27 | B65: 0 | C65: 0 | D65: 43.34 | E65: 2.94 | F65: B | G65: 27 | H65: 0 | I65: 0 | J65: 43.7 | K65: 3.42 | L65: B | M65: 27 | N65: 9274.08 | O65: 10.701 | P65: 43.81 | Q65: 4.45 | R65: AB | S65: 27 | T65: 73788.34 | U65: 1957.449 | V65: 43.8 | W65: 5.77 | X65: B | Y65: 83062.42
A66: 28 | B66: 0 | C66: 0 | D66: 43.25 | E66: 10.25 | F66: B | G66: 28 | H66: 0 | I66: 0 | J66: 43.33 | K66: 10.92 | L66: B | M66: 28 | N66: 0 | O66: 0 | P66: 43.44 | Q66: 12.18 | R66: B | S66: 28 | T66: 60113.78 | U66: 1339.769 | V66: 43.43 | W66: 10.56 | X66: B | Y66: 60113.78
A67: 29 | B67: 0 | C67: 0 | D67: 43.48 | E67: 13.11 | F67: B | G67: 29 | H67: 0 | I67: 0 | J67: 44.45 | K67: 13.57 | L67: B | M67: 29 | N67: 0 | O67: 0 | P67: 44.52 | Q67: 14.5 | R67: B | S67: 29 | T67: 51301.39 | U67: 986.569 | V67: 44.5 | W67: 11.94 | X67: B | Y67: 51301.39
A68: 30 | B68: 0 | C68: 0 | D68: 43.36 | E68: 9.28 | F68: B | G68: 30 | H68: 0 | I68: 0 | J68: 44.91 | K68: 9.86 | L68: B | M68: 30 | N68: 0 | O68: 0 | P68: 45 | Q68: 10.88 | R68: B | S68: 30 | T68: 58607.32 | U68: 1312.096 | V68: 44.98 | W68: 10.01 | X68: B | Y68: 58607.32
A69: 31 | B69: 0 | C69: 0 | D69: 43.73 | E69: 7.3 | F69: B | G69: 31 | H69: 0 | I69: 0 | J69: 44.57 | K69: 7.5 | L69: B | M69: 31 | N69: 0 | O69: 0 | P69: 44.63 | Q69: 8.04 | R69: B | S69: 31 | T69: 59315.57 | U69: 1342.873 | V69: 44.62 | W69: 7.89 | X69: B | Y69: 59315.57
A70: Итого | B70: 0 | C70: 0 | D70: 43.18 | E70: 7.07 | F70: B | G70: Итого | H70: 0 | I70: 0 | J70: 44.18 | K70: 7.41 | L70: ABC | M70: Итого | N70: 1686567.37 | O70: 300.039 | P70: 43.89 | Q70: 7.7 | R70: ABC | S70: Итого | T70: 2149978.86 | U70: 1471.414 | V70: 44.09 | W70: 7.17 | X70: ABC
A71: Новоник(РЦ) Перем пер | G71: Новоник(РЦ) УЗЛ
A72: Данные по объекту Н-николаевка-РЦ (осн.) за 3/17. | G72: Данные по объекту Flowsic600 (осн.) за 3/17.
A73: День | B73: V, м3 | C73: dP, кгс/м2 | D73: Pабс, кгс/см2 | E73: T, °C | F73: ABC | G73: День | H73: V, м3 | I73: Vру, м3 | J73: Pабс, кгс/см2 | K73: T, °C | L73: ABC
A74: 1 | B74: 0 | C74: 0 | D74: 1.1 | E74: 9.41 | F74: B | G74: 1 | H74: 11713.75 | I74: 4383.7 | J74: 2.59 | K74: 2.72 | L74: B | M74: =B74+H74 -> 11713.75
A75: 2 | B75: 0 | C75: 0 | D75: 1.09 | E75: 8.33 | F75: B | G75: 2 | H75: 11408.96 | I75: 4314.5 | J75: 2.56 | K75: 1.99 | L75: B | M75: =B75+H75 -> 11408.96
A76: 3 | B76: 0 | C76: 0 | D76: 1.09 | E76: 6.69 | F76: B | G76: 3 | H76: 10762.67 | I76: 4053.9 | J76: 2.56 | K76: 1.13 | L76: B | M76: =B76+H76 -> 10762.67
A77: 4 | B77: 0 | C77: 0 | D77: 1.08 | E77: 6.32 | G77: 4 | H77: 9980.13 | I77: 3763.1 | J77: 2.55 | K77: 0.59 | M77: 9980.13
A78: 5 | B78: 0 | C78: 0 | D78: 1.08 | E78: 7.2 | G78: 5 | H78: 11140.77 | I78: 4192 | J78: 2.57 | K78: 2.06 | M78: 11140.77
A79: 6 | B79: 0 | C79: 0 | D79: 1.08 | E79: 6.41 | F79: B | G79: 6 | H79: 11236.47 | I79: 4219 | J79: 2.57 | K79: 1.04 | L79: B | M79: 11236.47
A80: 7 | B80: 0 | C80: 0 | D80: 1.08 | E80: 6.9 | F80: B | G80: 7 | H80: 10176.57 | I80: 3825.6 | J80: 2.56 | K80: 1.38 | L80: B | M80: 10176.57
A81: 8 | B81: 0 | C81: 0 | D81: 1.07 | E81: 3.26 | G81: 8 | H81: 12467.78 | I81: 4708.6 | J81: 2.54 | K81: 0.11 | M81: 12467.78
A82: 9 | B82: 0 | C82: 0 | D82: 1.08 | E82: 7.28 | F82: B | G82: 9 | H82: 11114.47 | I82: 4198.3 | J82: 2.55 | K82: 0.97 | L82: B | M82: 11114.47
A83: 10 | B83: 0 | C83: 0 | D83: 1.08 | E83: 7.99 | F83: B | G83: 10 | H83: 10283.15 | I83: 3873 | J83: 2.57 | K83: 2.23 | L83: B | M83: 10283.15
A84: 11 | B84: 0 | C84: 0 | D84: 1.07 | E84: 3.95 | G84: 11 | H84: 11861.06 | I84: 4442.8 | J84: 2.56 | K84: -0.03 | M84: 11861.06
A85: 12 | B85: 0 | C85: 0 | D85: 1.06 | E85: 3.14 | G85: 12 | H85: 12471.82 | I85: 4686 | J85: 2.56 | K85: 0.63 | M85: 12471.82
A86: 13 | B86: 0 | C86: 0 | D86: 1.07 | E86: 6.66 | F86: B | G86: 13 | H86: 11588.67 | I86: 4358.5 | J86: 2.55 | K86: 0.35 | L86: B | M86: 11588.67
A87: 14 | B87: 0 | C87: 0 | D87: 1.08 | E87: 7.67 | F87: B | G87: 14 | H87: 11259.27 | I87: 4248.8 | J87: 2.55 | K87: 1.33 | L87: B | M87: 11259.27
A88: 15 | B88: 0 | C88: 0 | D88: 1.07 | E88: 6.24 | F88: B | G88: 15 | H88: 11459.26 | I88: 4292.3 | J88: 2.56 | K88: -0.45 | L88: B | M88: 11459.26
A89: 16 | B89: 0 | C89: 0 | D89: 1.06 | E89: 4.59 | F89: B | G89: 16 | H89: 11223.14 | I89: 4205.6 | J89: 2.56 | K89: -0.22 | L89: B | M89: 11223.14
A90: 17 | B90: 0 | C90: 0 | D90: 1.06 | E90: 3.66 | F90: B | G90: 17 | H90: 10787.87 | I90: 4025.3 | J90: 2.55 | K90: -2.17 | L90: B | M90: 10787.87
A91: 18 | B91: 0 | C91: 0 | D91: 1.07 | E91: 6.51 | G91: 18 | H91: 11171.88 | I91: 4209.9 | J91: 2.56 | K91: 1.66 | M91: 11171.88
A92: 19 | B92: 0 | C92: 0 | D92: 1.06 | E92: 4.93 | G92: 19 | H92: 12356.77 | I92: 4653.2 | J92: 2.57 | K92: 2.41 | M92: 12356.77
A93: 20 | B93: 0 | C93: 0 | D93: 1.06 | E93: 4.22 | F93: B | G93: 20 | H93: 11369.24 | I93: 4248 | J93: 2.57 | K93: 0.65 | L93: B | M93: 11369.24
A94: 21 | B94: 0 | C94: 0 | D94: 1.06 | E94: 5.15 | F94: B | G94: 21 | H94: 10941.04 | I94: 4105.4 | J94: 2.57 | K94: 0.9 | L94: B | M94: 10941.04
A95: 22 | B95: 0 | C95: 0 | D95: 1.07 | E95: 8.54 | F95: B | G95: 22 | H95: 9753.7 | I95: 3672.1 | J95: 2.57 | K95: 2.15 | L95: B | M95: 9753.7
A96: 23 | B96: 0 | C96: 0 | D96: 1.08 | E96: 12.19 | G96: 23 | H96: 8880.11 | I96: 3340.1 | J96: 2.6 | K96: 5.57 | M96: 8880.11
A97: 24 | B97: 0 | C97: 0 | D97: 1.08 | E97: 11.8 | F97: B | G97: 24 | H97: 8235.22 | I97: 3119.8 | J97: 2.58 | K97: 5.67 | L97: B | M97: 8235.22
A98: 25 | B98: 0 | C98: 0 | D98: 1.06 | E98: 5.96 | F98: B | G98: 25 | H98: 7899.01 | I98: 2968.6 | J98: 2.57 | K98: 2.52 | L98: B | M98: 7899.01
A99: 26 | B99: 0 | C99: 0 | D99: 1.05 | E99: 3.77 | G99: 26 | H99: 9909.92 | I99: 3730 | J99: 2.53 | K99: -1.73 | M99: 9909.92
A100: 27 | B100: 0 | C100: 0 | D100: 1.05 | E100: 3.87 | F100: B | G100: 27 | H100: 11254.01 | I100: 4220.7 | J100: 2.57 | K100: 1.06 | L100: B | M100: 11254.01
A101: 28 | B101: 0 | C101: 0 | D101: 1.07 | E101: 8.7 | F101: B | G101: 28 | H101: 10730.12 | I101: 3999.2 | J101: 2.63 | K101: 5.46 | L101: AB | M101: 10730.12
A102: 29 | B102: 0 | C102: 0 | D102: 1.04 | E102: 12.73 | F102: B | G102: 29 | H102: 9528.72 | I102: 3583.7 | J102: 2.62 | K102: 8.1 | L102: B | M102: 9528.72
A103: 30 | B103: 7597.5 | C103: 220.071 | D103: 2.29 | E103: 6.65 | F103: ABC | G103: 30 | H103: 901.4 | I103: 0 | J103: 0 | K103: 0 | L103: B | M103: =B103+H103 -> 8498.9
A104: 31 | B104: 8547.96 | C104: 222.593 | D104: 2.58 | E104: 5.96 | F104: AB | G104: 31 | H104: 0 | I104: 0.5 | J104: 2.63 | K104: 7.9 | L104: A | M104: =B104+H104 -> 8547.96
A105: Итого | B105: 16145.46 | C105: 221.332 | D105: 2.44 | E105: 6.31 | F105: ABC | G105: Итого | H105: 312966.88 | I105: 117642.3 | J105: 2.57 | K105: 1.66 | L105: AB
A106: Данные по объекту Васильевка (осн.) за 3/17. | G106: Данные по объекту АГНКС (осн.) за 3/17.
A107: День | B107: V, м3 | C107: dP, кгс/м2 | D107: Pабс, кгс/см2 | E107: T, °C | F107: ABC | G107: День | H107: V, м3 | I107: dP, кгс/м2 | J107: Pабс, кгс/см2 | K107: T, °C | L107: ABC
A108: 1 | B108: 48429.59 | C108: 315.602 | D108: 3.3 | E108: 0.12 | F108: B | G108: 1 | H108: 1543.45 | I108: 94.405 | J108: 22.23 | K108: 9.08 | L108: AB | M108: =B108+H108 -> 49973.04
A109: 2 | B109: 45379 | C109: 276.632 | D109: 3.29 | E109: -1.15 | F109: B | G109: 2 | H109: 1924.71 | I109: 117.721 | J109: 22.21 | K109: 7.67 | L109: AB | M109: =B109+H109 -> 47303.71
A110: 3 | B110: 43926.61 | C110: 262.456 | D110: 3.29 | E110: -1.47 | F110: B | G110: 3 | H110: 1735.53 | I110: 101.915 | J110: 22.24 | K110: 6.34 | L110: AB | M110: 45662.14
A111: 4 | B111: 42092.01 | C111: 236.901 | D111: 3.31 | E111: -4.31 | G111: 4 | H111: 1041.34 | I111: 69.172 | J111: 22.47 | K111: 6.14 | L111: A | M111: 43133.35
A112: 5 | B112: 45152.97 | C112: 275.588 | D112: 3.29 | E112: -3.46 | G112: 5 | H112: 480.07 | I112: 32.913 | J112: 22.67 | K112: 6.99 | L112: A | M112: 45633.04
A113: 6 | B113: 46305.09 | C113: 291.519 | D113: 3.28 | E113: 0.96 | F113: AB | G113: 6 | H113: 1436.18 | I113: 91.075 | J113: 22.16 | K113: 6.24 | L113: AB | M113: 47741.27
A114: 7 | B114: 42064.87 | C114: 237.839 | D114: 3.29 | E114: 0.47 | F114: B | G114: 7 | H114: 1573.82 | I114: 94.632 | J114: 22.25 | K114: 7.72 | L114: AB | M114: 43638.69
A115: 8 | B115: 46855.71 | C115: 294.826 | D115: 3.26 | E115: -1.28 | F115: A | G115: 8 | H115: 1542.26 | I115: 92.22 | J115: 22.23 | K115: 3.96 | L115: A | M115: 48397.97
A116: 9 | B116: 44169.73 | C116: 263.274 | D116: 3.28 | E116: -0.92 | F116: B | G116: 9 | H116: 1663.07 | I116: 98.577 | J116: 22.07 | K116: 7.88 | L116: AB | M116: 45832.8
A117: 10 | B117: 41033.16 | C117: 229.323 | D117: 3.29 | E117: 0.15 | F117: B | G117: 10 | H117: 1783.41 | I117: 108.354 | J117: 22.1 | K117: 9.3 | L117: AB | M117: 42816.57
A118: 11 | B118: 43278.95 | C118: 250.859 | D118: 3.29 | E118: -2.48 | G118: 11 | H118: 1161.99 | I118: 70.766 | J118: 22.43 | K118: 5.47 | L118: A | M118: 44440.94
A119: 12 | B119: 46753.77 | C119: 292.947 | D119: 3.28 | E119: -3.83 | F119: A | G119: 12 | H119: 439.2 | I119: 26.121 | J119: 22.83 | K119: 4.43 | L119: A | M119: 47192.97
A120: 13 | B120: 43720.12 | C120: 259.44 | D120: 3.29 | E120: -0.84 | F120: B | G120: 13 | H120: 1565.25 | I120: 91.906 | J120: 22.13 | K120: 8.04 | L120: AB | M120: 45285.37
A121: 14 | B121: 43530.2 | C121: 257.327 | D121: 3.28 | E121: -0.17 | F121: AB | G121: 14 | H121: 1423.03 | I121: 85.5 | J121: 22.29 | K121: 7.18 | L121: AB | M121: 44953.23
A122: 15 | B122: 44673.61 | C122: 268.226 | D122: 3.28 | E122: -1.48 | F122: B | G122: 15 | H122: 1584.98 | I122: 94.86 | J122: 22.34 | K122: 5.84 | L122: AB | M122: 46258.59
A123: 16 | B123: 44309.54 | C123: 269.388 | D123: 3.27 | E123: 0.41 | F123: AB | G123: 16 | H123: 1387.34 | I123: 83.003 | J123: 22.6 | K123: 4.44 | L123: AB | M123: 45696.88
A124: 17 | B124: 43625.92 | C124: 260.064 | D124: 3.27 | E124: -0.76 | F124: AB | G124: 17 | H124: 1585.84 | I124: 105.989 | J124: 22.24 | K124: 5.26 | L124: AB | M124: 45211.76
A125: 18 | B125: 43059.61 | C125: 255.276 | D125: 3.27 | E125: 2.12 | G125: 18 | H125: 992.12 | I125: 67.491 | J125: 22.57 | K125: 6.88 | L125: A | M125: 44051.73
A126: 19 | B126: 46999.51 | C126: 302.596 | D126: 3.27 | E126: 0.99 | G126: 19 | H126: 309.74 | I126: 18.536 | J126: 22.92 | K126: 5.64 | L126: A | M126: 47309.25
A127: 20 | B127: 44599.59 | C127: 272.248 | D127: 3.28 | E127: 1.27 | F127: B | G127: 20 | H127: 1171.42 | I127: 71.11 | J127: 22.41 | K127: 5.57 | L127: AB | M127: 45771.01
A128: 21 | B128: 41402.48 | C128: 237.901 | D128: 3.25 | E128: -1.72 | F128: AB | G128: 21 | H128: 917.71 | I128: 55.519 | J128: 22.59 | K128: 5.51 | L128: AB | M128: 42320.19
A129: 22 | B129: 38685.8 | C129: 215.579 | D129: 3.26 | E129: 4.2 | F129: B | G129: 22 | H129: 1193.13 | I129: 73.051 | J129: 22.6 | K129: 9.83 | L129: AB | M129: 39878.93
A130: 23 | B130: 36018.38 | C130: 179.781 | D130: 3.28 | E130: -3.83 | G130: 23 | H130: 1384.3 | I130: 83.718 | J130: 22.37 | K130: 11.9 | L130: A | M130: 37402.68
A131: 24 | B131: 34941.27 | C131: 169.526 | D131: 3.26 | E131: -4.42 | F131: B | G131: 24 | H131: 1320.26 | I131: 79.949 | J131: 22.28 | K131: 11.88 | L131: AB | M131: 36261.53
A132: 25 | B132: 32610.26 | C132: 164.058 | D132: 3.25 | E132: -2.13 | F132: AB | G132: 25 | H132: 1267.31 | I132: 85.31 | J132: 22.45 | K132: 7.99 | L132: AB | M132: 33877.57
A133: 26 | B133: 42673.07 | C133: 252.459 | D133: 3.21 | E133: 0.09 | F133: A | G133: 26 | H133: 684.94 | I133: 39.555 | J133: 22.6 | K133: 3.32 | L133: A | M133: 43358.01
A134: 27 | B134: 46327.41 | C134: 294.485 | D134: 3.24 | E134: -0.22 | F134: B | G134: 27 | H134: 1082.69 | I134: 65.546 | J134: 22.37 | K134: 4.15 | L134: AB | M134: 47410.1
A135: 28 | B135: 37599.93 | C135: 201.573 | D135: 3.26 | E135: 6.45 | F135: B | G135: 28 | H135: 1232.67 | I135: 74.541 | J135: 22.46 | K135: 10.92 | L135: AB | M135: 38832.6
A136: 29 | B136: 32731.28 | C136: 151.463 | D136: 3.23 | E136: -0.37 | F136: B | G136: 29 | H136: 1590.81 | I136: 94 | J136: 22.19 | K136: 12.89 | L136: AB | M136: 34322.09
A137: 30 | B137: 33996.67 | C137: 165.356 | D137: 3.19 | E137: -6.01 | F137: B | G137: 30 | H137: 1438.76 | I137: 84.552 | J137: 22.24 | K137: 7.71 | L137: AB | M137: 35435.43
A138: 31 | B138: 35023.95 | C138: 172.694 | D138: 3.26 | E138: -8.33 | F138: B | G138: 31 | H138: 1545 | I138: 88.04 | J138: 22.24 | K138: 7.46 | L138: AB | M138: 36568.95
A139: Итого | B139: 1301970.05 | C139: 244.426 | D139: 3.27 | E139: -1.03 | F139: AB | G139: Итого | H139: 40002.33 | I139: 87.208 | J139: 22.31 | K139: 7.6 | L139: AB

Sheet variablesList (hidden)
A1: 3 | B1: x:\gaysin | C1: 10, 11, 24, 25, 127, 128, 132, 180, 207, 215 | D1: x:\
B2: x:\Illinci
B3: x:\Talne
